Workbook

Sheet DataMorris
A1: Date | B1: Time | C1: Observers | D1: Obs No | E1: Sky | F1: Wind | G1: Temp | H1: Exp | I1: Plot | J1: Crop | K1: % Flower Cover | L1: Honey Bee | M1: Bumblebee | N1: Small bee | O1: Flies | P1: Butterflies | Q1: Beetles | R1: Other | S1: Total | T1: Total/cover | U1: Notes | V1: Timer Interval
A2: 2018-05-20 | B2: 11:18:57 | C2: ff | D2: 1 | E2: Partly Cloudy | F2: 15 | G2: 65 | H2: CAP-M | I2: 203 | J2: PC | K2: 1 | L2: 0 | M2: 0 | N2: 0 | O2: 0 | P2: 0 | Q2: 0 | R2: 0 | S2: =SUM(L2:R2) -> 0 | T2: =S2/K2 -> 0 | U2: Only Recorded plots that were flowering. Two reps do not have stands worth countng (Soybeans). Corn stands have not established stands worth counting | V2: 1
A3: 2018-05-20 | B3: 11:22:03 | C3: ff | D3: 1 | E3: Partly Cloudy | F3: 15 | G3: 65 | H3: CAP-M | I3: 213 | J3: PC | K3: 0.5 | L3: 0 | M3: 0 | N3: 0 | O3: 0 | P3: 0 | Q3: 0 | R3: 3 | S3: =SUM(L3:R3) -> 3 | T3: =S3/K3 -> 6 | U3: Only Recorded plots that were flowering. Two reps do not have stands worth countng (Soybeans). Corn stands have not established stands worth counting | V3: 1
A4: 2018-05-20 | B4: 11:25:39 | C4: ff | D4: 1 | E4: Partly Cloudy | F4: 15 | G4: 65 | H4: CAP-M | I4: 219 | J4: PC | K4: 0.5 | L4: 0 | M4: 0 | N4: 0 | O4: 0 | P4: 0 | Q4: 0 | R4: 0 | S4: 0 | T4: 0 | U4: Only Recorded plots that were flowering. Two reps do not have stands worth countng (Soybeans). Corn stands have not established stands worth counting | V4: 1
A5: 2018-05-20 | B5: 11:36:58 | C5: ff | D5: 1 | E5: Partly Cloudy | F5: 15 | G5: 65 | H5: CAP-M | I5: 215 | J5: PC | K5: 0.5 | L5: 0 | M5: 0 | N5: 0 | O5: 0 | P5: 0 | Q5: 0 | R5: 0 | S5: 0 | T5: 0 | U5: Only Recorded plots that were flowering. Two reps do not have stands worth countng (Soybeans). Corn stands have not established stands worth counting | V5: 1
A6: 2018-05-21 | B6: 11:36:14 | C6: ff | D6: 1 | E6: Overcast | F6: 10 | G6: 60 | H6: CAP-M | I6: 203 | J6: PC | K6: 1 | L6: 0 | M6: 0 | N6: 0 | O6: 0 | P6: 0 | Q6: 0 | R6: 0 | S6: 0 | T6: 0 | V6: 1
A7: 2018-05-21 | B7: 11:38:47 | C7: ff | D7: 1 | E7: Overcast | F7: 10 | G7: 60 | H7: CAP-M | I7: 213 | J7: PC | K7: 1 | L7: 0 | M7: 0 | N7: 0 | O7: 0 | P7: 0 | Q7: 0 | R7: 0 | S7: 0 | T7: 0 | V7: 1
A8: 2018-05-21 | B8: 11:40:36 | C8: ff | D8: 1 | E8: Overcast | F8: 10 | G8: 60 | H8: CAP-M | I8: 215 | J8: PC | K8: 0.5 | L8: 0 | M8: 0 | N8: 0 | O8: 0 | P8: 0 | Q8: 0 | R8: 1 | S8: 1 | T8: 2 | V8: 1
A9: 2018-05-21 | B9: 11:42:15 | C9: ff | D9: 1 | E9: Overcast | F9: 10 | G9: 60 | H9: CAP-M | I9: 219 | J9: PC | K9: 0.5 | L9: 0 | M9: 0 | N9: 0 | O9: 0 | P9: 0 | Q9: 0 | R9: 0 | S9: 0 | T9: 0 | V9: 1
A10: 2018-05-22 | B10: 11:26:57 | C10: ff | D10: 1 | E10: Overcast | F10: 10 | G10: 65 | H10: CAP-M | I10: 203 | J10: PC | K10: 2 | L10: 0 | M10: 0 | N10: 1 | O10: 1 | P10: 0 | Q10: 0 | R10: 2 | S10: 4 | T10: 2 | V10: 1
A11: 2018-05-22 | B11: 11:28:47 | C11: ff | D11: 1 | E11: Overcast | F11: 10 | G11: 65 | H11: CAP-M | I11: 213 | J11: PC | K11: 2 | L11: 0 | M11: 0 | N11: 0 | O11: 4 | P11: 0 | Q11: 0 | R11: 1 | S11: 5 | T11: 2.5 | V11: 1
A12: 2018-05-22 | B12: 11:30:27 | C12: ff | D12: 1 | E12: Overcast | F12: 10 | G12: 65 | H12: CAP-M | I12: 215 | J12: PC | K12: 1 | L12: 0 | M12: 0 | N12: 0 | O12: 3 | P12: 0 | Q12: 0 | R12: 2 | S12: 5 | T12: 5 | V12: 1
A13: 2018-05-22 | B13: 11:32:08 | C13: ff | D13: 1 | E13: Overcast | F13: 10 | G13: 65 | H13: CAP-M | I13: 219 | J13: PC | K13: 0.5 | L13: 0 | M13: 0 | N13: 0 | O13: 0 | P13: 0 | Q13: 0 | R13: 0 | S13: 0 | T13: 0 | V13: 1
A14: 2018-05-22 | B14: 14:54:20 | C14: ff | D14: 1 | E14: Partly Cloudy | F14: 10 | G14: 75 | H14: CAP-M | I14: 203 | J14: PC | K14: 2 | L14: 0 | M14: 0 | N14: 0 | O14: 3 | P14: 0 | Q14: 0 | R14: 1 | S14: 4 | T14: 2 | V14: 1
A15: 2018-05-22 | B15: 14:56:07 | C15: ff | D15: 1 | E15: Partly Cloudy | F15: 10 | G15: 75 | H15: CAP-M | I15: 213 | J15: PC | K15: 2 | L15: 0 | M15: 0 | N15: 2 | O15: 2 | P15: 0 | Q15: 0 | R15: 1 | S15: 5 | T15: 2.5 | V15: 1
A16: 2018-05-22 | B16: 14:57:47 | C16: ff | D16: 1 | E16: Partly Cloudy | F16: 10 | G16: 75 | H16: CAP-M | I16: 215 | J16: PC | K16: 0.5 | L16: 0 | M16: 0 | N16: 0 | O16: 0 | P16: 0 | Q16: 1 | R16: 0 | S16: 1 | T16: 2 | V16: 1
A17: 2018-05-22 | B17: 15:00:03 | C17: ff | D17: 1 | E17: Partly Cloudy | F17: 10 | G17: 75 | H17: CAP-M | I17: 219 | J17: PC | K17: 0.5 | L17: 0 | M17: 0 | N17: 1 | O17: 1 | P17: 0 | Q17: 0 | R17: 0 | S17: 2 | T17: 4 | V17: 1
A18: 2018-05-25 | B18: 12:44:58 | C18: je | D18: 1 | E18: Partly Cloudy | F18: 5 | G18: 80 | H18: CAP-M | I18: 203 | J18: PC | K18: 1 | L18: 0 | M18: 0 | N18: 0 | O18: 2 | P18: 0 | Q18: 3 | R18: 0 | S18: 5 | T18: 5 | V18: 1
A19: 2018-05-25 | B19: 12:49:32 | C19: je | D19: 1 | E19: Partly Cloudy | F19: 10 | G19: 80 | H19: CAP-M | I19: 209 | J19: PC | K19: 2 | L19: 0 | M19: 0 | N19: 0 | O19: 1 | P19: 0 | Q19: 4 | R19: 0 | S19: 5 | T19: 2.5 | V19: 1
A20: 2018-05-25 | B20: 12:55:16 | C20: je | D20: 1 | E20: Partly Cloudy | F20: 15 | G20: 80 | H20: CAP-M | I20: 213 | J20: PC | K20: 3 | L20: 0 | M20: 0 | N20: 0 | O20: 1 | P20: 0 | Q20: 0 | R20: 1 | S20: 2 | T20: 0.6666666667 | V20: 1
A21: 2018-05-25 | B21: 12:57:05 | C21: je | D21: 1 | E21: Partly Cloudy | F21: 15 | G21: 80 | H21: CAP-M | I21: 215 | J21: PC | K21: 0.5 | L21: 0 | M21: 0 | N21: 1 | O21: 3 | P21: 0 | Q21: 0 | R21: 0 | S21: 4 | T21: 8 | V21: 1
A22: 2018-05-25 | B22: 12:59:22 | C22: je | D22: 1 | E22: Partly Cloudy | F22: 10 | G22: 80 | H22: CAP-M | I22: 219 | J22: PC | K22: 1 | L22: 0 | M22: 0 | N22: 0 | O22: 2 | P22: 0 | Q22: 0 | R22: 0 | S22: 2 | T22: 2 | V22: 1
A23: 2018-05-26 | B23: 09:22:41 | C23: je | D23: 1 | E23: Clear | F23: 5 | G23: 75 | H23: CAP-M | I23: 203 | J23: PC | K23: 0.5 | L23: 0 | M23: 0 | N23: 2 | O23: 2 | P23: 0 | Q23: 0 | R23: 1 | S23: 5 | T23: 10 | V23: 1
A24: 2018-05-26 | B24: 09:27:02 | C24: je | D24: 1 | E24: Clear | F24: 10 | G24: 75 | H24: CAP-M | I24: 209 | J24: PC | K24: 3 | L24: 0 | M24: 0 | N24: 1 | O24: 1 | P24: 0 | Q24: 0 | R24: 0 | S24: 2 | T24: 0.6666666667 | V24: 1
A25: 2018-05-26 | B25: 09:32:04 | C25: je | D25: 1 | E25: Clear | F25: 10 | G25: 75 | H25: CAP-M | I25: 213 | J25: PC | K25: 4 | L25: 0 | M25: 0 | N25: 2 | O25: 3 | P25: 0 | Q25: 3 | R25: 0 | S25: 8 | T25: 2 | V25: 1
A26: 2018-05-26 | B26: 09:34:27 | C26: je | D26: 1 | E26: Clear | F26: 10 | G26: 75 | H26: CAP-M | I26: 215 | J26: PC | K26: 0.5 | L26: 0 | M26: 0 | N26: 0 | O26: 2 | P26: 0 | Q26: 1 | R26: 1 | S26: 4 | T26: 8 | V26: 1
A27: 2018-05-26 | B27: 09:36:54 | C27: je | D27: 1 | E27: Clear | F27: 10 | G27: 75 | H27: CAP-M | I27: 219 | J27: PC | K27: 2 | L27: 0 | M27: 0 | N27: 2 | O27: 2 | P27: 0 | Q27: 2 | R27: 2 | S27: 8 | T27: 4 | V27: 1
A28: 2018-05-30 | B28: 11:02:48 | C28: je | D28: 1 | E28: Overcast | F28: 10 | G28: 70 | H28: CAP-M | I28: 209 | J28: PC | K28: 0.5 | L28: 0 | M28: 0 | N28: 0 | O28: 3 | P28: 0 | Q28: 0 | R28: 1 | S28: 4 | T28: 8 | V28: 1
A29: 2018-05-25 | B29: 12:47:23 | C29: je | D29: 1 | E29: Partly Cloudy | F29: 5 | G29: 80 | H29: CAP-M | I29: 207 | J29: WC | K29: 1 | L29: 0 | M29: 0 | N29: 1 | O29: 2 | P29: 0 | Q29: 0 | R29: 1 | S29: =SUM(L29:R29) -> 4 | T29: =S29/K29 -> 4 | V29: 1
A30: 2018-05-25 | B30: 12:52:19 | C30: je | D30: 1 | E30: Partly Cloudy | F30: 10 | G30: 80 | H30: CAP-M | I30: 212 | J30: WC | K30: 3 | L30: 0 | M30: 0 | N30: 0 | O30: 2 | P30: 0 | Q30: 0 | R30: 2 | S30: =SUM(L30:R30) -> 4 | T30: =S30/K30 -> 1.333333333 | V30: 1
A31: 2018-05-26 | B31: 09:24:59 | C31: je | D31: 1 | E31: Clear | F31: 5 | G31: 75 | H31: CAP-M | I31: 207 | J31: WC | K31: 1 | L31: 0 | M31: 0 | N31: 0 | O31: 1 | P31: 0 | Q31: 0 | R31: 2 | S31: 3 | T31: 3 | V31: 1
A32: 2018-05-26 | B32: 09:29:20 | C32: je | D32: 1 | E32: Clear | F32: 10 | G32: 75 | H32: CAP-M | I32: 212 | J32: WC | K32: 4 | L32: 0 | M32: 0 | N32: 2 | O32: 2 | P32: 0 | Q32: 1 | R32: 1 | S32: 6 | T32: 1.5 | V32: 1
A33: 2018-05-30 | B33: 10:56:56 | C33: je | D33: 1 | E33: Overcast | F33: 10 | G33: 70 | H33: CAP-M | I33: 204 | J33: WC | K33: 0.5 | L33: 0 | M33: 0 | N33: 0 | O33: 1 | P33: 0 | Q33: 0 | R33: 0 | S33: 1 | T33: 2 | V33: 1
A34: 2018-05-30 | B34: 11:00:27 | C34: je | D34: 1 | E34: Overcast | F34: 10 | G34: 70 | H34: CAP-M | I34: 207 | J34: WC | K34: 4 | L34: 0 | M34: 0 | N34: 0 | O34: 0 | P34: 0 | Q34: 0 | R34: 4 | S34: 4 | T34: 1 | V34: 1
A35: 2018-05-30 | B35: 11:32:13 | C35: je | D35: 1 | E35: Overcast | F35: 10 | G35: 70 | H35: CAP-M | I35: 212 | J35: WC | K35: 3 | L35: 0 | M35: 0 | N35: 0 | O35: 2 | P35: 0 | Q35: 0 | R35: 2 | S35: 4 | T35: 1.333333333 | V35: 1
A36: 2018-05-30 | B36: 11:34:07 | C36: je | D36: 1 | E36: Overcast | F36: 10 | G36: 70 | H36: CAP-M | I36: 216 | J36: WC | K36: 0.5 | L36: 0 | M36: 0 | N36: 0 | O36: 0 | P36: 0 | Q36: 0 | R36: 0 | S36: 0 | T36: 0 | V36: 1
A37: 2018-05-30 | B37: 11:37:02 | C37: je | D37: 1 | E37: Overcast | F37: 10 | G37: 70 | H37: CAP-M | I37: 220 | J37: WC | K37: 0.5 | L37: 0 | M37: 0 | N37: 0 | O37: 1 | P37: 0 | Q37: 0 | R37: 1 | S37: 2 | T37: 4 | V37: 1
A38: 2018-05-30 | B38: 11:39:31 | C38: je | D38: 1 | E38: Overcast | F38: 10 | G38: 70 | H38: CAP-M | I38: 225 | J38: WC | K38: 2 | L38: 0 | M38: 0 | N38: 1 | O38: 1 | P38: 0 | Q38: 0 | R38: 0 | S38: 2 | T38: 1 | V38: 1
A39: 2018-05-31 | B39: 13:30:43 | C39: je | D39: 1 | E39: Clear | F39: 15 | G39: 80 | H39: CAP-M | I39: 204 | J39: WC | K39: 0.5 | L39: 0 | M39: 0 | N39: 1 | O39: 0 | P39: 0 | Q39: 0 | R39: 1 | S39: 2 | T39: 4 | V39: 1
A40: 2018-05-31 | B40: 13:32:34 | C40: je | D40: 1 | E40: Clear | F40: 15 | G40: 80 | H40: CAP-M | I40: 207 | J40: WC | K40: 4 | L40: 0 | M40: 1 | N40: 2 | O40: 0 | P40: 0 | Q40: 0 | R40: 2 | S40: 5 | T40: 1.25 | V40: 1
A41: 2018-05-31 | B41: 13:34:28 | C41: je | D41: 1 | E41: Clear | F41: 15 | G41: 80 | H41: CAP-M | I41: 212 | J41: WC | K41: 4 | L41: 0 | M41: 0 | N41: 1 | O41: 0 | P41: 0 | Q41: 0 | R41: 1 | S41: 2 | T41: 0.5 | V41: 1
A42: 2018-05-31 | B42: 13:36:17 | C42: je | D42: 1 | E42: Clear | F42: 15 | G42: 80 | H42: CAP-M | I42: 216 | J42: WC | K42: 0.5 | L42: 1 | M42: 0 | N42: 1 | O42: 0 | P42: 0 | Q42: 0 | R42: 1 | S42: 3 | T42: 6 | V42: 1
A43: 2018-05-31 | B43: 13:38:12 | C43: je | D43: 1 | E43: Clear | F43: 15 | G43: 80 | H43: CAP-M | I43: 201 | J43: WC | K43: 2 | L43: 0 | M43: 0 | N43: 0 | O43: 0 | P43: 0 | Q43: 0 | R43: 1 | S43: 1 | T43: 0.5 | V43: 1
A44: 2018-06-04 | B44: 10:40:56 | C44: ff | D44: 1 | E44: Clear | F44: 10 | G44: 70 | H44: CAP-M | I44: 204 | J44: WC | K44: 0.5 | L44: 0 | M44: 0 | N44: 0 | O44: 1 | P44: 0 | Q44: 0 | R44: 3 | S44: 4 | T44: 8 | V44: 1
A45: 2018-06-04 | B45: 10:43:12 | C45: ff | D45: 1 | E45: Clear | F45: 10 | G45: 70 | H45: CAP-M | I45: 207 | J45: WC | K45: 3 | L45: 0 | M45: 0 | N45: 0 | O45: 3 | P45: 0 | Q45: 0 | R45: 5 | S45: 8 | T45: 2.666666667 | V45: 1
A46: 2018-06-04 | B46: 10:44:57 | C46: ff | D46: 1 | E46: Clear | F46: 10 | G46: 70 | H46: CAP-M | I46: 212 | J46: WC | K46: 2 | L46: 1 | M46: 0 | N46: 0 | O46: 2 | P46: 0 | Q46: 0 | R46: 0 | S46: 3 | T46: 1.5 | V46: 1
A47: 2018-06-04 | B47: 10:46:39 | C47: ff | D47: 1 | E47: Clear | F47: 10 | G47: 70 | H47: CAP-M | I47: 216 | J47: WC | K47: 0.5 | L47: 0 | M47: 0 | N47: 0 | O47: 0 | P47: 1 | Q47: 0 | R47: 0 | S47: 1 | T47: 2 | V47: 1
A48: 2018-06-04 | B48: 10:48:13 | C48: ff | D48: 1 | E48: Clear | F48: 10 | G48: 70 | H48: CAP-M | I48: 220 | J48: WC | K48: 1 | L48: 1 | M48: 0 | N48: 0 | O48: 0 | P48: 0 | Q48: 0 | R48: 2 | S48: 3 | T48: 3 | V48: 1
A49: 2018-06-04 | B49: 10:50:08 | C49: ff | D49: 1 | E49: Clear | F49: 10 | G49: 70 | H49: CAP-M | I49: 225 | J49: WC | K49: 1 | L49: 0 | M49: 0 | N49: 0 | O49: 0 | P49: 0 | Q49: 0 | R49: 2 | S49: 2 | T49: 2 | V49: 1
A50: 2018-06-04 | B50: 10:52:01 | C50: ff | D50: 1 | E50: Clear | F50: 10 | G50: 70 | H50: CAP-M | I50: 239 | J50: WC | K50: 0.5 | L50: 0 | M50: 0 | N50: 0 | O50: 1 | P50: 0 | Q50: 0 | R50: 2 | S50: 3 | T50: 6 | V50: 1
A51: 2018-06-05 | B51: 11:26:47 | C51: ff | D51: 1 | E51: Partly Cloudy | F51: 5 | G51: 80 | H51: CAP-M | I51: 204 | J51: WC | K51: 0.5 | L51: 0 | M51: 0 | N51: 0 | O51: 2 | P51: 0 | Q51: 0 | R51: 1 | S51: 3 | T51: 6 | V51: 1
A52: 2018-06-05 | B52: 11:28:38 | C52: ff | D52: 1 | E52: Partly Cloudy | F52: 5 | G52: 80 | H52: CAP-M | I52: 207 | J52: WC | K52: 0.5 | L52: 0 | M52: 0 | N52: 1 | O52: 0 | P52: 0 | Q52: 0 | R52: 2 | S52: 3 | T52: 6 | V52: 1
A53: 2018-06-05 | B53: 11:31:39 | C53: ff | D53: 1 | E53: Partly Cloudy | F53: 5 | G53: 80 | H53: CAP-M | I53: 220 | J53: WC | K53: 1 | L53: 0 | M53: 0 | N53: 0 | O53: 1 | P53: 0 | Q53: 0 | R53: 3 | S53: 4 | T53: 4 | V53: 1
A54: 2018-06-05 | B54: 11:33:37 | C54: ff | D54: 1 | E54: Partly Cloudy | F54: 5 | G54: 80 | H54: CAP-M | I54: 225 | J54: WC | K54: 1 | L54: 0 | M54: 0 | N54: 0 | O54: 1 | P54: 0 | Q54: 0 | R54: 1 | S54: 2 | T54: 2 | V54: 1
A55: 2018-06-05 | B55: 11:37:33 | C55: ff | D55: 1 | E55: Partly Cloudy | F55: 5 | G55: 80 | H55: CAP-M | I55: 239 | J55: WC | K55: 0.5 | L55: 0 | M55: 0 | N55: 0 | O55: 1 | P55: 0 | Q55: 0 | R55: 2 | S55: 3 | T55: 6 | V55: 1
A56: 2018-06-05 | B56: 11:40:00 | C56: ff | D56: 1 | E56: Partly Cloudy | F56: 5 | G56: 80 | H56: CAP-M | I56: 216 | J56: WC | K56: 0.5 | L56: 0 | M56: 0 | N56: 0 | O56: 2 | P56: 0 | Q56: 0 | R56: 1 | S56: 3 | T56: 6 | V56: 1
A57: 2018-06-05 | B57: 11:41:47 | C57: ff | D57: 1 | E57: Partly Cloudy | F57: 5 | G57: 80 | H57: CAP-M | I57: 212 | J57: WC | K57: 0.5 | L57: 2 | M57: 0 | N57: 0 | O57: 0 | P57: 0 | Q57: 0 | R57: 2 | S57: 4 | T57: 8 | V57: 1
K59: Sums
K60: Pennycress | L60: =SUM(L2:L28) -> 0 | M60: =SUM(M2:M28) -> 0 | N60: 12 | O60: 36 | P60: 0 | Q60: 14 | R60: 17
K61: Winter Camelina | L61: =SUM(L29:L57) -> 5 | M61: =SUM(M29:M57) -> 1 | N61: 10 | O61: 26 | P61: 1 | Q61: 1 | R61: 45
J63: Pennycress
A64: 140 | B64: 11.25 | E64: 66 | F64: =AVERAGE(F2:F5) -> 15 | G64: 65 | H64: =F64*1.64 -> 24.6 | I64: =(G64-32)/1.8 -> 18.33333333 | J64: 2018-05-20 | K64: =AVERAGE(K2:K5) -> 0.625 | L64: =AVERAGE(L2:L5) -> 0 | M64: 0 | N64: 0 | O64: 0 | P64: 0 | Q64: 0 | R64: 0.75 | S64: =AVERAGE(S2:S5) -> 0.75 | T64: 1.5
A65: 141 | B65: 11.5 | E65: 0 | F65: =AVERAGE(F6:F9) -> 10 | G65: 60 | H65: =F65*1.64 -> 16.4 | I65: =(G65-32)/1.8 -> 15.55555556 | J65: 2018-05-21 | K65: =AVERAGE(K6:K9) -> 0.75 | L65: =AVERAGE(L6:L9) -> 0 | M65: 0 | N65: 0 | O65: 0 | P65: 0 | Q65: 0 | R65: 0.25 | S65: =AVERAGE(S6:S9) -> 0.25 | T65: 0.5
A66: 142 | B66: 11.5 | E66: 66 | F66: =AVERAGE(F10:F17) -> 10 | G66: 70 | H66: 16.4 | I66: 21.11111111 | J66: 2018-05-22 | K66: =AVERAGE(K10:K17) -> 1.3125 | L66: =AVERAGE(L10:L17) -> 0 | M66: 0 | N66: 0.5 | O66: 1.75 | P66: 0 | Q66: 0.125 | R66: 0.875 | S66: =AVERAGE(S10:S17) -> 3.25 | T66: 2.5
A67: 145 | B67: 13 | E67: 66 | F67: =AVERAGE(F18:F22) -> 11 | G67: 80 | H67: 18.04 | I67: 26.66666667 | J67: 2018-05-25 | K67: =AVERAGE(K18:K22) -> 1.5 | L67: =AVERAGE(L18:L22) -> 0 | M67: 0 | N67: 0.2 | O67: 1.8 | P67: 0 | Q67: 1.4 | R67: 0.2 | S67: =AVERAGE(S18:S22) -> 3.6 | T67: 3.633333333
A68: 146 | B68: 9.5 | E68: 100 | F68: =AVERAGE(F23:F27) -> 9 | G68: 75 | H68: 14.76 | I68: 23.88888889 | J68: 2018-05-26 | K68: =AVERAGE(K23:K27) -> 2 | L68: =AVERAGE(L23:L27) -> 0 | M68: 0 | N68: 1.4 | O68: 2 | P68: 0 | Q68: 1.2 | R68: 0.8 | S68: =AVERAGE(S23:S27) -> 5.4 | T68: 4.933333333
A69: 150 | B69: 11 | E69: 0 | F69: =F28 -> 10 | G69: 70 | H69: 16.4 | I69: 21.11111111 | J69: 2018-05-30 | K69: =K28 -> 0.5 | L69: =L28 -> 0 | M69: 0 | N69: 0 | O69: 3 | P69: 0 | Q69: 0 | R69: 1 | S69: =S28 -> 4 | T69: 8
J70: S.E.
J71: 2018-05-20 | K71: =STDEV(K2:K5)/SQRT(COUNT(K2:K5)) -> 0.125 | L71: =STDEV(L2:L5)/SQRT(COUNT(L2:L5)) -> 0 | M71: 0 | N71: 0 | O71: 0 | P71: 0 | Q71: 0 | R71: 0.75 | S71: =STDEV(S2:S5)/SQRT(COUNT(S2:S5)) -> 0.75 | T71: 1.5
J72: 2018-05-21 | K72: =STDEV(K6:K9)/SQRT(COUNT(K6:K9)) -> 0.1443375673 | L72: =STDEV(L6:L9)/SQRT(COUNT(L6:L9)) -> 0 | M72: 0 | N72: 0 | O72: 0 | P72: 0 | Q72: 0 | R72: 0.25 | S72: =STDEV(S6:S9)/SQRT(COUNT(S6:S9)) -> 0.25 | T72: 0.5
J73: 2018-05-22 | K73: =STDEV(K10:K17)/SQRT(COUNT(K10:K17)) -> 0.2662152056 | L73: =STDEV(L10:L17)/SQRT(COUNT(L10:L17)) -> 0 | M73: 0 | N73: 0.2672612419 | O73: 0.5261042808 | P73: 0 | Q73: 0.125 | R73: 0.2950484222 | S73: =STDEV(S10:S17)/SQRT(COUNT(S10:S17)) -> 0.7007648882 | T73: 0.5261042808
J74: 2018-05-25 | K74: =STDEV(K18:K22)/SQRT(COUNT(K18:K22)) -> 0.4472135955 | L74: =STDEV(L18:L22)/SQRT(COUNT(L18:L22)) -> 0 | M74: 0 | N74: 0.2 | O74: 0.3741657387 | P74: 0 | Q74: 0.8717797887 | R74: 0.2 | S74: =STDEV(S18:S22)/SQRT(COUNT(S18:S22)) -> 0.6782329983 | T74: 1.297861489
J75: 2018-05-26 | K75: =STDEV(K23:K27)/SQRT(COUNT(K23:K27)) -> 0.6892024376 | L75: =STDEV(L23:L27)/SQRT(COUNT(L23:L27)) -> 0 | M75: 0 | N75: 0.4 | O75: 0.316227766 | P75: 0 | Q75: 0.5830951895 | R75: 0.3741657387 | S75: =STDEV(S23:S27)/SQRT(COUNT(S23:S27)) -> 1.166190379 | T75: 1.771377367
J76: 2018-05-30 | K76: 0 | L76: 0 | M76: 0 | N76: 0 | O76: 0 | P76: 0 | Q76: 0 | R76: 0 | S76: 0 | T76: 0
J78: Winter Camelina
A79: 145 | B79: 13 | E79: 66 | F79: =AVERAGE(F29:F30) -> 7.5 | G79: 80 | H79: =F79*1.64 -> 12.3 | I79: =(G79-32)/1.8 -> 26.66666667 | J79: 2018-05-25 | K79: =AVERAGE(K29:K30) -> 2 | L79: =AVERAGE(L29:L30) -> 0 | M79: 0 | N79: 0.5 | O79: 2 | P79: 0 | Q79: 0 | R79: 1.5 | S79: =AVERAGE(S29:S30) -> 4 | T79: 2.666666667
A80: 146 | B80: 9.5 | E80: 100 | F80: =AVERAGE(F31:F32) -> 7.5 | G80: 75 | H80: 12.3 | I80: 23.88888889 | J80: 2018-05-26 | K80: =AVERAGE(K31:K32) -> 2.5 | L80: =AVERAGE(L31:L32) -> 0 | M80: 0 | N80: 1 | O80: 1.5 | P80: 0 | Q80: 0.5 | R80: 1.5 | S80: =AVERAGE(S31:S32) -> 4.5 | T80: 2.25
A81: 150 | B81: 11.5 | E81: 0 | F81: =AVERAGE(F33:F38) -> 10 | G81: 70 | H81: 16.4 | I81: 21.11111111 | J81: 2018-05-30 | K81: =AVERAGE(K33:K38) -> 1.75 | L81: =AVERAGE(L33:L38) -> 0 | M81: 0 | N81: 0.1666666667 | O81: 0.8333333333 | P81: 0 | Q81: 0 | R81: 1.166666667 | S81: =AVERAGE(S33:S38) -> 2.166666667 | T81: 1.555555556
A82: 151 | B82: 13.5 | E82: 100 | F82: =AVERAGE(F39:F43) -> 15 | G82: 80 | H82: 24.6 | I82: 26.66666667 | J82: 2018-05-31 | K82: =AVERAGE(K39:K43) -> 2.2 | L82: =AVERAGE(L39:L43) -> 0.2 | M82: 0.2 | N82: 1 | O82: 0 | P82: 0 | Q82: 0 | R82: 1.2 | S82: =AVERAGE(S39:S43) -> 2.6 | T82: 2.45
A83: 155 | B83: 10.75 | E83: 100 | F83: =AVERAGE(F44:F50) -> 10 | G83: 70 | H83: 16.4 | I83: 21.11111111 | J83: 2018-06-04 | K83: =AVERAGE(K44:K50) -> 1.214285714 | L83: =AVERAGE(L44:L50) -> 0.2857142857 | M83: 0 | N83: 0 | O83: 1 | P83: 0.1428571429 | Q83: 0 | R83: 2 | S83: =AVERAGE(S44:S50) -> 3.428571429 | T83: 3.595238095
A84: 156 | B84: 11.75 | E84: 66 | F84: =AVERAGE(F51:F57) -> 5 | G84: 80 | H84: 8.2 | I84: 26.66666667 | J84: 2018-06-05 | K84: =AVERAGE(K51:K57) -> 0.6428571429 | L84: =AVERAGE(L51:L57) -> 0.2857142857 | M84: 0 | N84: 0.1428571429 | O84: 1 | P84: 0 | Q84: 0 | R84: 1.714285714 | S84: =AVERAGE(S51:S57) -> 3.142857143 | T84: 5.428571429
J85: S.E.
J86: 2018-05-25 | K86: =STDEV(K29:K30)/SQRT(COUNT(K29:K30)) -> 1 | L86: =STDEV(L29:L30)/SQRT(COUNT(L29:L30)) -> 0 | M86: 0 | N86: 0.5 | O86: 0 | P86: 0 | Q86: 0 | R86: 0.5 | S86: =STDEV(S29:S30)/SQRT(COUNT(S29:S30)) -> 0 | T86: 1.333333333
J87: 2018-05-26 | K87: =STDEV(K31:K32)/SQRT(COUNT(K31:K32)) -> 1.5 | L87: =STDEV(L31:L32)/SQRT(COUNT(L31:L32)) -> 0 | M87: 0 | N87: 1 | O87: 0.5 | P87: 0 | Q87: 0.5 | R87: 0.5 | S87: =STDEV(S31:S32)/SQRT(COUNT(S31:S32)) -> 1.5 | T87: 0.75
J88: 2018-05-30 | K88: =STDEV(K33:K38)/SQRT(COUNT(K33:K38)) -> 0.6157651067 | L88: =STDEV(L33:L38)/SQRT(COUNT(L33:L38)) -> 0 | M88: 0 | N88: 0.1666666667 | O88: 0.3073181486 | P88: 0 | Q88: 0 | R88: 0.654047229 | S88: =STDEV(S33:S38)/SQRT(COUNT(S33:S38)) -> 0.654047229 | T88: 0.5555555556
J89: 2018-05-31 | K89: =STDEV(K39:K43)/SQRT(COUNT(K39:K43)) -> 0.7842193571 | L89: =STDEV(L39:L43)/SQRT(COUNT(L39:L43)) -> 0.2 | M89: 0.2 | N89: 0.316227766 | O89: 0 | P89: 0 | Q89: 0 | R89: 0.2 | S89: =STDEV(S39:S43)/SQRT(COUNT(S39:S43)) -> 0.6782329983 | T89: 1.09658561
J90: 2018-06-04 | K90: =STDEV(K44:K50)/SQRT(COUNT(K44:K50)) -> 0.3595159255 | L90: =STDEV(L44:L50)/SQRT(COUNT(L44:L50)) -> 0.1844277784 | M90: 0 | N90: 0 | O90: 0.4364357805 | P90: 0.1428571429 | Q90: 0 | R90: 0.6546536707 | S90: =STDEV(S44:S50)/SQRT(COUNT(S44:S50)) -> 0.8411200825 | T90: 0.9242880449
J91: 2018-06-05 | K91: =STDEV(K51:K57)/SQRT(COUNT(K51:K57)) -> 0.0922138892 | L91: =STDEV(L51:L57)/SQRT(COUNT(L51:L57)) -> 0.2857142857 | M91: 0 | N91: 0.1428571429 | O91: 0.3086066999 | P91: 0 | Q91: 0 | R91: 0.2857142857 | S91: =STDEV(S51:S57)/SQRT(COUNT(S51:S57)) -> 0.2608202655 | T91: 0.719031851
J93: Overall averages and S.E.
K94: Cover | L94: Honey bee | M94: Bumble bee | N94: Small bee | O94: Fly | P94: Butterfly | Q94: Beetle | R94: Other | S94: Total | T94: No./cover
F95: =AVERAGE(F2:F28) -> 10.74074074 | G95: 70.55555556 | J95: Pennycress | K95: =AVERAGE(K2:K28) -> 1.259259259 | L95: =AVERAGE(L2:L28) -> 0 | M95: 0 | N95: 0.4444444444 | O95: 1.333333333 | P95: 0 | Q95: 0.5185185185 | R95: 0.6296296296 | S95: 2.925925926 | T95: 2.919753086
F96: =STDEV(F2:F28)/SQRT(COUNT(F2:F28)) -> 0.5136112928 | G96: 1.369523108 | K96: =STDEV(K2:K28)/SQRT(COUNT(K2:K28)) -> 0.1856120437 | L96: =STDEV(L2:L28)/SQRT(COUNT(L2:L28)) -> 0 | M96: 0 | N96: 0.1445430301 | O96: 0.2445997952 | P96: 0 | Q96: 0.2159611813 | R96: 0.1614407016 | S96: 0.4681476072 | T96: 0.5642040767
F98: =AVERAGE(F29:F57) -> 9.310344828 | G98: 75.17241379 | J98: Winter Camelina | K98: =AVERAGE(K29:K57) -> 1.5 | L98: =AVERAGE(L29:L57) -> 0.1724137931 | M98: 0.03448275862 | N98: 0.3448275862 | O98: 0.8965517241 | P98: 0.03448275862 | Q98: 0.03448275862 | R98: 1.551724138 | S98: 3.068965517 | T98: 3.261494253
F99: =STDEV(F29:F57)/SQRT(COUNT(F29:F57)) -> 0.6434655408 | G99: 0.9111636115 | K99: =STDEV(K29:K57)/SQRT(COUNT(K29:K57)) -> 0.2405863117 | L99: =STDEV(L29:L57)/SQRT(COUNT(L29:L57)) -> 0.08694267288 | M99: 0.03448275862 | N99: 0.1139944479 | O99: 0.1671613744 | P99: 0.03448275862 | Q99: 0.03448275862 | R99: 0.2196403627 | S99: 0.2974896384 | T99: 0.433717702
F101: km/h | G101: C
F102: =F95*1.64 -> 17.61481481 | G102: =(G95-32)/1.8 -> 21.41975309
F103: =F96*1.64 -> 0.8423225202 | G103: =(G96)/1.8 -> 0.7608461709
F105: =F98*1.64 -> 15.26896552 | G105: =(G98-32)/1.8 -> 23.98467433
F106: =F99*1.64 -> 1.055283487 | G106: =(G99)/1.8 -> 0.5062020064

Sheet DataRosemount
A1: Date | B1: Time | C1: Observers | D1: Obs No | E1: Sky | F1: Wind | G1: Temp | H1: Exp | I1: Plot | J1: Crop | K1: % Flower Cover | L1: Honey Bee | M1: Bumblebee | N1: Small bee | O1: Flies | P1: Butterflies | Q1: Beetles | R1: Other | S1: Total | T1: total/cover | U1: Notes | V1: Timer Interval
A2: 2018-05-24 | B2: 10:37:45 | C2: jim, loren | D2: 2 | E2: Partly Cloudy | F2: 5 | G2: 80 | H2: CAP-W-Soy | I2: 502 | J2: PC | K2: 2 | L2: 0 | M2: 0 | N2: 0 | O2: 2 | P2: 0 | Q2: 0 | R2: 0 | S2: =SUM(L2:R2) -> 2 | T2: =S2/K2 -> 1 | U2: 81 degrees. 10mph | V2: 1
A3: 2018-05-24 | B3: 10:39:44 | C3: jim, loren | D3: 2 | E3: Partly Cloudy | F3: 5 | G3: 80 | H3: CAP-W-Soy | I3: 502 | J3: PC | K3: 2 | L3: 0 | M3: 0 | N3: 0 | O3: 1 | P3: 0 | Q3: 0 | R3: 0 | S3: =SUM(L3:R3) -> 1 | T3: =S3/K3 -> 0.5 | V3: 1
A4: 2018-05-24 | B4: 10:42:07 | C4: jim, loren | D4: 2 | E4: Partly Cloudy | F4: 5 | G4: 80 | H4: CAP-W-Soy | I4: 504 | J4: PC | K4: 2 | L4: 0 | M4: 0 | N4: 1 | O4: 0 | P4: 0 | Q4: 0 | R4: 0 | S4: 1 | T4: 0.5 | V4: 1
A5: 2018-05-24 | B5: 10:43:48 | C5: jim, loren | D5: 2 | E5: Partly Cloudy | F5: 5 | G5: 80 | H5: CAP-W-Soy | I5: 504 | J5: PC | K5: 2 | L5: 0 | M5: 0 | N5: 0 | O5: 1 | P5: 0 | Q5: 1 | R5: 2 | S5: 4 | T5: 2 | V5: 1
A6: 2018-05-24 | B6: 10:46:23 | C6: jim, loren | D6: 2 | E6: Partly Cloudy | F6: 5 | G6: 80 | H6: CAP-W-Soy | I6: 608 | J6: PC | K6: 5 | L6: 0 | M6: 0 | N6: 1 | O6: 2 | P6: 0 | Q6: 1 | R6: 1 | S6: 5 | T6: 1 | V6: 1
A7: 2018-05-24 | B7: 10:47:59 | C7: jim, loren | D7: 2 | E7: Partly Cloudy | F7: 5 | G7: 80 | H7: CAP-W-Soy | I7: 608 | J7: PC | K7: 5 | L7: 0 | M7: 0 | N7: 1 | O7: 0 | P7: 0 | Q7: 0 | R7: 1 | S7: 2 | T7: 0.4 | V7: 1
A8: 2018-05-24 | B8: 10:51:11 | C8: jim, loren | D8: 2 | E8: Partly Cloudy | F8: 5 | G8: 80 | H8: CAP-W-Soy | I8: 706 | J8: PC | K8: 3 | L8: 0 | M8: 0 | N8: 0 | O8: 0 | P8: 0 | Q8: 0 | R8: 2 | S8: 2 | T8: 0.6666666667 | V8: 1
A9: 2018-05-24 | B9: 10:53:15 | C9: jim, loren | D9: 2 | E9: Partly Cloudy | F9: 5 | G9: 80 | H9: CAP-W-Soy | I9: 706 | J9: PC | K9: 4 | L9: 0 | M9: 0 | N9: 1 | O9: 0 | P9: 0 | Q9: 1 | R9: 1 | S9: 3 | T9: 0.75 | V9: 1
A10: 2018-05-24 | B10: 10:56:33 | C10: jim, loren | D10: 2 | E10: Partly Cloudy | F10: 5 | G10: 80 | H10: CAP-W-Soy | I10: 710 | J10: PC | K10: 5 | L10: 1 | M10: 0 | N10: 1 | O10: 0 | P10: 0 | Q10: 0 | R10: 0 | S10: 2 | T10: 0.4 | V10: 1
A11: 2018-05-24 | B11: 10:58:06 | C11: jim, loren | D11: 2 | E11: Partly Cloudy | F11: 5 | G11: 80 | H11: CAP-W-Soy | I11: 710 | J11: PC | K11: 5 | L11: 0 | M11: 0 | N11: 2 | O11: 0 | P11: 0 | Q11: 0 | R11: 1 | S11: 3 | T11: 0.6 | V11: 1
A12: 2018-05-24 | B12: 11:00:52 | C12: jim, loren | D12: 2 | E12: Partly Cloudy | F12: 5 | G12: 80 | H12: CAP-W-Soy | I12: 806 | J12: PC | K12: 3 | L12: 0 | M12: 0 | N12: 3 | O12: 1 | P12: 0 | Q12: 0 | R12: 1 | S12: 5 | T12: 1.666666667 | V12: 1
A13: 2018-05-24 | B13: 11:03:10 | C13: jim, loren | D13: 2 | E13: Partly Cloudy | F13: 5 | G13: 80 | H13: CAP-W-Soy | I13: 806 | J13: PC | K13: 3 | L13: 0 | M13: 0 | N13: 0 | O13: 3 | P13: 0 | Q13: 2 | R13: 0 | S13: 5 | T13: 1.666666667 | V13: 1
A14: 2018-05-25 | B14: 10:12:40 | C14: cody, loren | D14: 2 | E14: Partly Cloudy | F14: 5 | G14: 75 | H14: CAP-W-Soy | I14: 502 | J14: PC | K14: 2 | L14: 0 | M14: 0 | N14: 2 | O14: 5 | P14: 0 | Q14: 0 | R14: 3 | S14: 10 | T14: 5 | V14: 1
A15: 2018-05-25 | B15: 10:14:19 | C15: cody, loren | D15: 2 | E15: Partly Cloudy | F15: 5 | G15: 75 | H15: CAP-W-Soy | I15: 502 | J15: PC | K15: 2 | L15: 0 | M15: 0 | N15: 2 | O15: 4 | P15: 1 | Q15: 0 | R15: 3 | S15: 10 | T15: 5 | V15: 1
A16: 2018-05-25 | B16: 10:20:16 | C16: cody, loren | D16: 2 | E16: Partly Cloudy | F16: 5 | G16: 75 | H16: CAP-W-Soy | I16: 504 | J16: PC | K16: 3 | L16: 0 | M16: 0 | N16: 1 | O16: 5 | P16: 0 | Q16: 0 | R16: 0 | S16: 6 | T16: 2 | V16: 1
A17: 2018-05-25 | B17: 10:22:54 | C17: cody, loren | D17: 2 | E17: Partly Cloudy | F17: 5 | G17: 75 | H17: CAP-W-Soy | I17: 504 | J17: PC | K17: 3 | L17: 0 | M17: 0 | N17: 0 | O17: 5 | P17: 0 | Q17: 0 | R17: 1 | S17: 6 | T17: 2 | V17: 1
A18: 2018-05-25 | B18: 10:24:17 | C18: cody, loren | D18: 2 | E18: Partly Cloudy | F18: 5 | G18: 75 | H18: CAP-W-Soy | I18: 608 | J18: PC | K18: 4 | L18: 0 | M18: 0 | N18: 2 | O18: 3 | P18: 0 | Q18: 1 | R18: 4 | S18: 10 | T18: 2.5 | V18: 1
A19: 2018-05-25 | B19: 10:25:44 | C19: cody, loren | D19: 2 | E19: Partly Cloudy | F19: 5 | G19: 75 | H19: CAP-W-Soy | I19: 608 | J19: PC | K19: 4 | L19: 0 | M19: 0 | N19: 0 | O19: 10 | P19: 0 | Q19: 0 | R19: 1 | S19: 11 | T19: 2.75 | V19: 1
A20: 2018-05-25 | B20: 10:30:31 | C20: cody, loren | D20: 2 | E20: Partly Cloudy | F20: 5 | G20: 75 | H20: CAP-W-Soy | I20: 706 | J20: PC | K20: 3 | L20: 0 | M20: 0 | N20: 1 | O20: 3 | P20: 0 | Q20: 0 | R20: 4 | S20: 8 | T20: 2.666666667 | V20: 1
A21: 2018-05-25 | B21: 10:31:51 | C21: cody, loren | D21: 2 | E21: Partly Cloudy | F21: 5 | G21: 75 | H21: CAP-W-Soy | I21: 706 | J21: PC | K21: 3 | L21: 0 | M21: 0 | N21: 0 | O21: 8 | P21: 0 | Q21: 0 | R21: 0 | S21: 8 | T21: 2.666666667 | V21: 1
A22: 2018-05-25 | B22: 10:33:35 | C22: cody, loren | D22: 2 | E22: Partly Cloudy | F22: 5 | G22: 75 | H22: CAP-W-Soy | I22: 710 | J22: PC | K22: 5 | L22: 0 | M22: 0 | N22: 0 | O22: 11 | P22: 0 | Q22: 0 | R22: 1 | S22: 12 | T22: 2.4 | V22: 1
A23: 2018-05-25 | B23: 10:35:00 | C23: cody, loren | D23: 2 | E23: Partly Cloudy | F23: 5 | G23: 75 | H23: CAP-W-Soy | I23: 710 | J23: PC | K23: 5 | L23: 0 | M23: 0 | N23: 0 | O23: 9 | P23: 0 | Q23: 0 | R23: 0 | S23: 9 | T23: 1.8 | V23: 1
A24: 2018-05-25 | B24: 10:40:12 | C24: cody, loren | D24: 2 | E24: Partly Cloudy | F24: 5 | G24: 75 | H24: CAP-W-Soy | I24: 806 | J24: PC | K24: 3 | L24: 0 | M24: 0 | N24: 0 | O24: 9 | P24: 0 | Q24: 2 | R24: 1 | S24: 12 | T24: 4 | V24: 1
A25: 2018-05-25 | B25: 10:41:46 | C25: cody, loren | D25: 2 | E25: Partly Cloudy | F25: 5 | G25: 75 | H25: CAP-W-Soy | I25: 806 | J25: PC | K25: 3 | L25: 0 | M25: 0 | N25: 0 | O25: 6 | P25: 0 | Q25: 0 | R25: 0 | S25: 6 | T25: 2 | V25: 1
A26: 2018-05-29 | B26: 08:20:44 | C26: loren,jim | D26: 2 | E26: Partly Cloudy | F26: 5 | G26: 75 | H26: CAP-W-Soy | I26: 504 | J26: PC | K26: 2 | L26: 1 | M26: 0 | N26: 0 | O26: 0 | P26: 0 | Q26: 1 | R26: 1 | S26: 3 | T26: 1.5 | V26: 1
A27: 2018-05-31 | B27: 10:14:55 | C27: Loren, Anthony | D27: 2 | E27: Partly Cloudy | F27: 5 | G27: 75 | H27: CAP-W-Soy | I27: 502 | J27: PC | K27: 1 | L27: 0 | M27: 0 | N27: 0 | O27: 5 | P27: 0 | Q27: 0 | R27: 0 | S27: 5 | T27: 5 | V27: 1
A28: 2018-05-31 | B28: 10:16:50 | C28: Loren, Anthony | D28: 2 | E28: Partly Cloudy | F28: 5 | G28: 75 | H28: CAP-W-Soy | I28: 502 | J28: PC | K28: 1 | L28: 0 | M28: 1 | N28: 0 | O28: 3 | P28: 0 | Q28: 0 | R28: 1 | S28: 5 | T28: 5 | V28: 1
A29: 2018-05-31 | B29: 10:22:13 | C29: Loren, Anthony | D29: 2 | E29: Partly Cloudy | F29: 5 | G29: 75 | H29: CAP-W-Soy | I29: 504 | J29: PC | K29: 1 | L29: 0 | M29: 0 | N29: 0 | O29: 3 | P29: 0 | Q29: 0 | R29: 1 | S29: 4 | T29: 4 | V29: 1
A30: 2018-05-31 | B30: 10:23:51 | C30: Loren, Anthony | D30: 2 | E30: Partly Cloudy | F30: 5 | G30: 75 | H30: CAP-W-Soy | I30: 504 | J30: PC | K30: 1 | L30: 1 | M30: 0 | N30: 0 | O30: 3 | P30: 0 | Q30: 0 | R30: 0 | S30: 4 | T30: 4 | V30: 1
A31: 2018-05-31 | B31: 10:26:51 | C31: Loren, Anthony | D31: 2 | E31: Partly Cloudy | F31: 5 | G31: 75 | H31: CAP-W-Soy | I31: 608 | J31: PC | K31: 1 | L31: 0 | M31: 0 | N31: 1 | O31: 2 | P31: 0 | Q31: 0 | R31: 1 | S31: 4 | T31: 4 | V31: 1
A32: 2018-05-31 | B32: 10:28:28 | C32: Loren, Anthony | D32: 2 | E32: Partly Cloudy | F32: 5 | G32: 75 | H32: CAP-W-Soy | I32: 608 | J32: PC | K32: 1 | L32: 0 | M32: 0 | N32: 0 | O32: 5 | P32: 0 | Q32: 1 | R32: 0 | S32: 6 | T32: 6 | V32: 1
A33: 2018-05-31 | B33: 10:34:50 | C33: Loren, Anthony | D33: 2 | E33: Partly Cloudy | F33: 5 | G33: 75 | H33: CAP-W-Soy | I33: 706 | J33: PC | K33: 1 | L33: 0 | M33: 0 | N33: 1 | O33: 3 | P33: 0 | Q33: 0 | R33: 0 | S33: 4 | T33: 4 | V33: 1
A34: 2018-05-31 | B34: 10:36:07 | C34: Loren, Anthony | D34: 2 | E34: Partly Cloudy | F34: 5 | G34: 75 | H34: CAP-W-Soy | I34: 706 | J34: PC | K34: 1 | L34: 0 | M34: 0 | N34: 1 | O34: 3 | P34: 0 | Q34: 0 | R34: 0 | S34: 4 | T34: 4 | V34: 1
A35: 2018-05-31 | B35: 10:38:13 | C35: Loren, Anthony | D35: 2 | E35: Partly Cloudy | F35: 5 | G35: 75 | H35: CAP-W-Soy | I35: 710 | J35: PC | K35: 1 | L35: 0 | M35: 0 | N35: 0 | O35: 2 | P35: 0 | Q35: 0 | R35: 1 | S35: 3 | T35: 3 | V35: 1
A36: 2018-05-31 | B36: 10:39:30 | C36: Loren, Anthony | D36: 2 | E36: Partly Cloudy | F36: 5 | G36: 75 | H36: CAP-W-Soy | I36: 710 | J36: PC | K36: 1 | L36: 0 | M36: 0 | N36: 0 | O36: 3 | P36: 0 | Q36: 0 | R36: 0 | S36: 3 | T36: 3 | V36: 1
A37: 2018-05-31 | B37: 10:46:23 | C37: Loren, Anthony | D37: 2 | E37: Partly Cloudy | F37: 5 | G37: 75 | H37: CAP-W-Soy | I37: 806 | J37: PC | K37: 1 | L37: 1 | M37: 0 | N37: 0 | O37: 4 | P37: 0 | Q37: 0 | R37: 0 | S37: 5 | T37: 5 | V37: 1
A38: 2018-05-31 | B38: 10:47:49 | C38: Loren, Anthony | D38: 2 | E38: Partly Cloudy | F38: 5 | G38: 75 | H38: CAP-W-Soy | I38: 806 | J38: PC | K38: 1 | L38: 0 | M38: 0 | N38: 0 | O38: 2 | P38: 0 | Q38: 0 | R38: 0 | S38: 2 | T38: 2 | V38: 1
A39: 2018-05-24 | B39: 11:14:18 | C39: jim, loren | D39: 2 | E39: Partly Cloudy | F39: 5 | G39: 80 | H39: CAP-W-Soy | I39: 503 | J39: WC | K39: 1 | L39: 0 | M39: 0 | N39: 0 | O39: 0 | P39: 0 | Q39: 0 | R39: 7 | S39: 7 | T39: 7 | V39: 1
A40: 2018-05-24 | B40: 11:15:46 | C40: jim, loren | D40: 2 | E40: Partly Cloudy | F40: 5 | G40: 80 | H40: CAP-W-Soy | I40: 503 | J40: WC | K40: 1 | L40: 0 | M40: 0 | N40: 0 | O40: 1 | P40: 0 | Q40: 0 | R40: 5 | S40: 6 | T40: 6 | V40: 1
A41: 2018-05-24 | B41: 11:18:07 | C41: jim, loren | D41: 2 | E41: Partly Cloudy | F41: 5 | G41: 80 | H41: CAP-W-Soy | I41: 610 | J41: WC | K41: 1 | L41: 0 | M41: 0 | N41: 0 | O41: 1 | P41: 0 | Q41: 0 | R41: 1 | S41: 2 | T41: 2 | V41: 1
A42: 2018-05-24 | B42: 11:19:41 | C42: jim, loren | D42: 2 | E42: Partly Cloudy | F42: 5 | G42: 80 | H42: CAP-W-Soy | I42: 610 | J42: WC | K42: 1 | L42: 0 | M42: 0 | N42: 0 | O42: 0 | P42: 0 | Q42: 0 | R42: 4 | S42: 4 | T42: 4 | V42: 1
A43: 2018-05-24 | B43: 11:21:45 | C43: jim, loren | D43: 2 | E43: Partly Cloudy | F43: 5 | G43: 80 | H43: CAP-W-Soy | I43: 803 | J43: WC | K43: 1 | L43: 0 | M43: 0 | N43: 0 | O43: 1 | P43: 0 | Q43: 0 | R43: 0 | S43: 1 | T43: 1 | V43: 1
A44: 2018-05-24 | B44: 11:23:20 | C44: jim, loren | D44: 2 | E44: Partly Cloudy | F44: 5 | G44: 80 | H44: CAP-W-Soy | I44: 803 | J44: WC | K44: 1 | L44: 0 | M44: 0 | N44: 0 | O44: 1 | P44: 0 | Q44: 0 | R44: 0 | S44: 1 | T44: 1 | V44: 1
A45: 2018-05-25 | B45: 10:16:05 | C45: cody, loren | D45: 2 | E45: Partly Cloudy | F45: 5 | G45: 75 | H45: CAP-W-Soy | I45: 503 | J45: WC | K45: 1 | L45: 0 | M45: 0 | N45: 0 | O45: 2 | P45: 0 | Q45: 1 | R45: 5 | S45: 8 | T45: 8 | V45: 1
A46: 2018-05-25 | B46: 10:18:17 | C46: cody, loren | D46: 2 | E46: Partly Cloudy | F46: 5 | G46: 75 | H46: CAP-W-Soy | I46: 503 | J46: WC | K46: 1 | L46: 0 | M46: 0 | N46: 0 | O46: 2 | P46: 0 | Q46: 0 | R46: 4 | S46: 6 | T46: 6 | V46: 1
A47: 2018-05-25 | B47: 10:27:31 | C47: cody, loren | D47: 2 | E47: Partly Cloudy | F47: 5 | G47: 75 | H47: CAP-W-Soy | I47: 610 | J47: WC | K47: 1 | L47: 0 | M47: 0 | N47: 0 | O47: 3 | P47: 0 | Q47: 2 | R47: 4 | S47: 9 | T47: 9 | V47: 1
A48: 2018-05-25 | B48: 10:28:59 | C48: cody, loren | D48: 2 | E48: Partly Cloudy | F48: 5 | G48: 75 | H48: CAP-W-Soy | I48: 610 | J48: WC | K48: 1 | L48: 0 | M48: 0 | N48: 0 | O48: 3 | P48: 0 | Q48: 0 | R48: 4 | S48: 7 | T48: 7 | V48: 1
A49: 2018-05-25 | B49: 10:37:12 | C49: cody, loren | D49: 2 | E49: Partly Cloudy | F49: 5 | G49: 75 | H49: CAP-W-Soy | I49: 803 | J49: WC | K49: 1 | L49: 0 | M49: 0 | N49: 0 | O49: 3 | P49: 0 | Q49: 1 | R49: 5 | S49: 9 | T49: 9 | V49: 1
A50: 2018-05-25 | B50: 10:38:30 | C50: cody, loren | D50: 2 | E50: Partly Cloudy | F50: 5 | G50: 75 | H50: CAP-W-Soy | I50: 803 | J50: WC | K50: 1 | L50: 0 | M50: 0 | N50: 0 | O50: 1 | P50: 0 | Q50: 0 | R50: 2 | S50: 3 | T50: 3 | V50: 1
A51: 2018-05-31 | B51: 10:18:58 | C51: Loren, Anthony | D51: 2 | E51: Partly Cloudy | F51: 5 | G51: 75 | H51: CAP-W-Soy | I51: 503 | J51: WC | K51: 1 | L51: 0 | M51: 0 | N51: 0 | O51: 2 | P51: 0 | Q51: 0 | R51: 1 | S51: 3 | T51: 3 | V51: 1
A52: 2018-05-31 | B52: 10:20:32 | C52: Loren, Anthony | D52: 2 | E52: Partly Cloudy | F52: 5 | G52: 75 | H52: CAP-W-Soy | I52: 503 | J52: WC | K52: 1 | L52: 0 | M52: 1 | N52: 0 | O52: 1 | P52: 0 | Q52: 0 | R52: 0 | S52: 2 | T52: 2 | V52: 1
A53: 2018-05-31 | B53: 10:31:16 | C53: Loren, Anthony | D53: 2 | E53: Partly Cloudy | F53: 5 | G53: 75 | H53: CAP-W-Soy | I53: 610 | J53: WC | K53: 2 | L53: 0 | M53: 0 | N53: 0 | O53: 4 | P53: 0 | Q53: 0 | R53: 1 | S53: 5 | T53: 2.5 | V53: 1
A54: 2018-05-31 | B54: 10:32:56 | C54: Loren, Anthony | D54: 2 | E54: Partly Cloudy | F54: 5 | G54: 75 | H54: CAP-W-Soy | I54: 610 | J54: WC | K54: 2 | L54: 1 | M54: 0 | N54: 0 | O54: 2 | P54: 0 | Q54: 0 | R54: 0 | S54: 3 | T54: 1.5 | V54: 1
A55: 2018-05-31 | B55: 10:42:51 | C55: Loren, Anthony | D55: 2 | E55: Partly Cloudy | F55: 5 | G55: 75 | H55: CAP-W-Soy | I55: 803 | J55: WC | K55: 2 | L55: 0 | M55: 0 | N55: 0 | O55: 3 | P55: 0 | Q55: 0 | R55: 1 | S55: 4 | T55: 2 | V55: 1
A56: 2018-05-31 | B56: 10:44:18 | C56: Loren, Anthony | D56: 2 | E56: Partly Cloudy | F56: 5 | G56: 75 | H56: CAP-W-Soy | I56: 803 | J56: WC | K56: 2 | L56: 1 | M56: 0 | N56: 0 | O56: 0 | P56: 0 | Q56: 0 | R56: 0 | S56: 1 | T56: 0.5 | V56: 1
A57: Note: Today's (5/25/2018) data included observations of pollinators from the plots and alleys. Pollinators had very low density so alleys were more representative. Camelina plots had low emergence in the plots. Alleys were included for assessement of pollinators
J61: Pennycress | L61: =SUM(L2:L38) -> 4 | M61: =SUM(M2:M38) -> 1 | N61: 21 | O61: 126 | P61: 1 | Q61: 10 | R61: 32
J62: Winter Camelina | L62: =SUM(L39:L56) -> 2 | M62: =SUM(M39:M56) -> 1 | N62: 0 | O62: 30 | P62: 0 | Q62: 4 | R62: 44
J64: Pennycress
A65: 144 | B65: 10.75 | E65: 66 | F65: =AVERAGE(F2:F13) -> 5 | G65: =AVERAGE(G2:G13) -> 80 | H65: =F65*1.64 -> 8.2 | I65: =(G65-32)/1.8 -> 26.66666667 | J65: 2018-05-24 | K65: =AVERAGE(K2:K13) -> 3.416666667 | L65: =AVERAGE(L2:L13) -> 0.08333333333 | M65: 0 | N65: 0.8333333333 | O65: 0.8333333333 | P65: 0 | Q65: 0.4166666667 | R65: 0.75 | S65: 2.916666667 | T65: 0.9291666667
A66: 145 | B66: 10.25 | E66: 66 | F66: =AVERAGE(F14:F25) -> 5 | G66: =AVERAGE(G14:G25) -> 75 | H66: =F66*1.64 -> 8.2 | I66: =(G66-32)/1.8 -> 23.88888889 | J66: 2018-05-25 | K66: =AVERAGE(K14:K25) -> 3.333333333 | L66: =AVERAGE(L14:L25) -> 0 | M66: 0 | N66: 0.6666666667 | O66: 6.5 | P66: 0.08333333333 | Q66: 0.25 | R66: 1.5 | S66: 9 | T66: 2.898611111
A67: 149 | B67: 8.5 | E67: 66 | F67: =AVERAGE(F26:F26) -> 5 | G67: =AVERAGE(G26:G26) -> 75 | H67: 8.2 | I67: 23.88888889 | J67: 2018-05-29 | K67: =AVERAGE(K26:K26) -> 2 | L67: =AVERAGE(L26:L26) -> 1 | M67: 0 | N67: 0 | O67: 0 | P67: 0 | Q67: 1 | R67: 1 | S67: 3 | T67: 1.5
A68: 151 | B68: 10.5 | E68: 66 | F68: =AVERAGE(F27:F38) -> 5 | G68: =AVERAGE(G27:G38) -> 75 | H68: 8.2 | I68: 23.88888889 | J68: 2018-05-31 | K68: =AVERAGE(K27:K38) -> 1 | L68: =AVERAGE(L27:L38) -> 0.1666666667 | M68: 0.08333333333 | N68: 0.25 | O68: 3.166666667 | P68: 0 | Q68: 0.08333333333 | R68: 0.3333333333 | S68: 4.083333333 | T68: 4.083333333
J70: S.E.
J71: 2018-05-24 | K71: =STDEV(K2:K13)/SQRT(COUNT(K2:K13)) -> 0.3785605378 | L71: =STDEV(L2:L13)/SQRT(COUNT(L2:L13)) -> 0.08333333333 | M71: 0 | N71: 0.2706147136 | O71: 0.297294195 | P71: 0 | Q71: 0.1929960485 | R71: 0.2175970699 | S71: 0.4344682109 | T71: 0.1600731761
J72: 2018-05-25 | K72: =STDEV(K14:K25)/SQRT(COUNT(K14:K25)) -> 0.2842676218 | L72: =STDEV(L14:L25)/SQRT(COUNT(L14:L25)) -> 0 | M72: 0 | N72: 0.2562353716 | O72: 0.8024583441 | P72: 0.08333333333 | Q72: 0.1794351406 | R72: 0.4522670169 | S72: 0.6396021491 | T72: 0.3281186701
J73: 2018-05-29 | K73: 0 | L73: 0 | M73: 0 | N73: 0 | O73: 0 | P73: 0 | Q73: 0 | R73: 0 | S73: 0 | T73: 0
J74: 2018-05-31 | K74: =STDEV(K27:K38)/SQRT(COUNT(K27:K38)) -> 0 | L74: =STDEV(L27:L38)/SQRT(COUNT(L27:L38)) -> 0.1123666437 | M74: 0.08333333333 | N74: 0.130558242 | O74: 0.297294195 | P74: 0 | Q74: 0.08333333333 | R74: 0.1421338109 | S74: 0.3128154973 | T74: 0.3128154973
J76: Winter Camelina
A77: 144 | B77: 11.25 | E77: 66 | F77: =AVERAGE(F39:F44) -> 5 | G77: 80 | H77: =F77*1.64 -> 8.2 | I77: =(G77-32)/1.8 -> 26.66666667 | J77: 2018-05-24 | K77: =AVERAGE(K39:K44) -> 1 | L77: =AVERAGE(L39:L44) -> 0 | M77: 0 | N77: 0 | O77: 0.6666666667 | P77: 0 | Q77: 0 | R77: 2.833333333 | S77: 3.5 | T77: 3.5
A78: 145 | B78: 10.5 | E78: 66 | F78: =AVERAGE(F45:F50) -> 5 | G78: 75 | H78: 8.2 | I78: 23.88888889 | J78: 2018-05-25 | K78: =AVERAGE(K45:K50) -> 1 | L78: =AVERAGE(L45:L50) -> 0 | M78: 0 | N78: 0 | O78: 2.333333333 | P78: 0 | Q78: 0.6666666667 | R78: 4 | S78: 7 | T78: 7
A79: 151 | B79: 10.75 | E79: 66 | F79: =AVERAGE(F51:F56) -> 5 | G79: 75 | H79: 8.2 | I79: 23.88888889 | J79: 2018-05-31 | K79: =AVERAGE(K51:K56) -> 1.666666667 | L79: =AVERAGE(L51:L56) -> 0.3333333333 | M79: 0.1666666667 | N79: 0 | O79: 2 | P79: 0 | Q79: 0 | R79: 0.5 | S79: 3 | T79: 1.916666667
J81: S.E.
J82: 2018-05-24 | K82: =STDEV(K39:K44)/SQRT(COUNT(K39:K44)) -> 0 | L82: =STDEV(L39:L44)/SQRT(COUNT(L39:L44)) -> 0 | M82: 0 | N82: 0 | O82: 0.2108185107 | P82: 0 | Q82: 0 | R82: 1.194896555 | S82: 1.056724499 | T82: 1.056724499
J83: 2018-05-25 | K83: =STDEV(K45:K50)/SQRT(COUNT(K45:K50)) -> 0 | L83: =STDEV(L45:L50)/SQRT(COUNT(L45:L50)) -> 0 | M83: 0 | N83: 0 | O83: 0.3333333333 | P83: 0 | Q83: 0.3333333333 | R83: 0.4472135955 | S83: 0.9309493363 | T83: 0.9309493363
J84: 2018-05-31 | K84: =STDEV(K51:K56)/SQRT(COUNT(K51:K56)) -> 0.2108185107 | L84: =STDEV(L51:L56)/SQRT(COUNT(L51:L56)) -> 0.2108185107 | M84: 0.1666666667 | N84: 0 | O84: 0.5773502692 | P84: 0 | Q84: 0 | R84: 0.2236067977 | S84: 0.5773502692 | T84: 0.3515837185
J86: Overall averages and S.E.
K87: Cover | L87: Honey bee | M87: Bumble bee | N87: Small bee | O87: Fly | P87: Butterfly | Q87: Beetle | R87: Other | S87: Total | T87: No./cover
F88: =AVERAGE(F2:F38) -> 5 | G88: 76.62162162 | J88: Pennycress | K88: =AVERAGE(K2:K38) -> 2.567567568 | L88: =AVERAGE(L2:L38) -> 0.1081081081 | M88: 0.02702702703 | N88: 0.5675675676 | O88: 3.405405405 | P88: 0.02702702703 | Q88: 0.2702702703 | R88: 0.8648648649 | S88: 5.27027027 | T88: 2.606306306
F89: =STDEV(F2:F38)/SQRT(COUNT(F2:F38)) -> 0 | G89: 0.3901015332 | K89: =STDEV(K2:K38)/SQRT(COUNT(K2:K38)) -> 0.2374177289 | L89: =STDEV(L2:L38)/SQRT(COUNT(L2:L38)) -> 0.05175281664 | M89: 0.02702702703 | N89: 0.1316363892 | O89: 0.4862361718 | P89: 0.02702702703 | Q89: 0.09209481216 | R89: 0.1824185291 | S89: 0.5106209031 | T89: 0.2637970848
F91: =AVERAGE(F39:F56) -> 5 | G91: 76.66666667 | J91: Winter Camelina | K91: =AVERAGE(K39:K56) -> 1.222222222 | L91: =AVERAGE(L39:L56) -> 0.1111111111 | M91: 0.05555555556 | N91: 0 | O91: 1.666666667 | P91: 0 | Q91: 0.2222222222 | R91: 2.444444444 | S91: 4.5 | T91: 4.138888889
F92: =STDEV(F39:F56)/SQRT(COUNT(F39:F56)) -> 0 | G92: 0.5716619505 | K92: =STDEV(K39:K56)/SQRT(COUNT(K39:K56)) -> 0.1008316903 | L92: =STDEV(L39:L56)/SQRT(COUNT(L39:L56)) -> 0.0762215934 | M92: 0.05555555556 | N92: 0 | O92: 0.2800560168 | P92: 0 | Q92: 0.1292399996 | R92: 0.537618947 | S92: 0.6429608797 | T92: 0.686953057
F94: km/h | G94: C
F95: =F88*1.64 -> 8.2 | G95: =(G88-32)/1.8 -> 24.78978979
F96: =F89*1.64 -> 0 | G96: =(G89)/1.8 -> 0.216723074
F98: =F91*1.64 -> 8.2 | G98: =(G91-32)/1.8 -> 24.81481481
F99: =F92*1.64 -> 0 | G99: =(G92)/1.8 -> 0.3175899725

Sheet DataAmes
A1: Date | B1: Time | C1: Observers | D1: Obs No | E1: Sky | F1: Wind | G1: Temp | H1: Exp | I1: Plot | J1: Crop | K1: % Flower Cover | L1: Honey Bee | M1: Bumblebee | N1: Small bee | O1: Flies | P1: Butterflies | Q1: Beetles | R1: Other | S1: Total | T1: Total/cover | U1: Notes | V1: Timer Interval
A2: 2018-05-14 | B2: 13:23:12 | C2: SP | D2: 1 | E2: Partly cloudy | F2: 10 | G2: 78 | H2: CAP-A-Soy | I2: 102 | J2: PC | K2: 5 | O2: 6 | S2: =SUM(L2:R2) -> 6 | T2: =S2/K2 -> 1.2
A3: 2018-05-14 | B3: 13:25:09 | C3: SP | D3: 1 | E3: Partly cloudy | F3: 10 | G3: 78 | H3: CAP-A-Soy | I3: 106 | J3: PC | K3: 3 | N3: 2 | O3: 10 | S3: =SUM(L3:R3) -> 12 | T3: =S3/K3 -> 4
A4: 2018-05-14 | B4: 13:28:23 | C4: SP | D4: 1 | E4: Partly cloudy | F4: 10 | G4: 78 | H4: CAP-A-Soy | I4: 108 | J4: PC | K4: 2.5 | O4: 4 | Q4: 1 | S4: 5 | T4: 2
A5: 2018-05-14 | B5: 13:32:43 | C5: SP | D5: 1 | E5: Partly cloudy | F5: 8 | G5: 78 | H5: CAP-A-Soy | I5: 203 | J5: PC | K5: 3.5 | O5: 6 | Q5: 3 | S5: 9 | T5: 2.571428571
A6: 2018-05-14 | B6: 13:35:03 | C6: SP | D6: 1 | E6: Partly cloudy | F6: 10 | G6: 78 | H6: CAP-A-Soy | I6: 205 | J6: PC | K6: 4 | O6: 5 | Q6: 2 | S6: 7 | T6: 1.75
A7: 2018-05-14 | B7: 13:38:34 | C7: SP | D7: 1 | E7: Partly cloudy | F7: 10 | G7: 78 | H7: CAP-A-Soy | I7: 209 | J7: PC | K7: 3.5 | N7: 1 | O7: 3 | Q7: 1 | R7: 1 | S7: 6 | T7: 1.714285714
A8: 2018-05-14 | B8: 13:40:11 | C8: SP | D8: 1 | E8: Partly cloudy | F8: 8 | G8: 78 | H8: CAP-A-Soy | I8: 301 | J8: PC | K8: 4 | O8: 3 | Q8: 3 | S8: 6 | T8: 1.5
A9: 2018-05-14 | B9: 13:42:56 | C9: SP | D9: 1 | E9: Partly cloudy | F9: 10 | G9: 78 | H9: CAP-A-Soy | I9: 306 | J9: PC | K9: 4 | O9: 2 | Q9: 2 | S9: 4 | T9: 1
A10: 2018-05-14 | B10: 13:45:13 | C10: SP | D10: 1 | E10: Partly cloudy | F10: 8 | G10: 78 | H10: CAP-A-Soy | I10: 310 | J10: PC | K10: 4 | N10: 2 | O10: 1 | Q10: 2 | R10: 1 | S10: 6 | T10: 1.5
A11: 2018-05-14 | B11: 13:47:41 | C11: SP | D11: 1 | E11: Partly cloudy | F11: 10 | G11: 78 | H11: CAP-A-Soy | I11: 403 | J11: PC | K11: 1 | S11: 0 | T11: 0
A12: 2018-05-14 | B12: 13:50:03 | C12: SP | D12: 1 | E12: Partly cloudy | F12: 10 | G12: 78 | H12: CAP-A-Soy | I12: 406 | J12: PC | K12: 3.5 | O12: 5 | Q12: 1 | S12: 6 | T12: 1.714285714
A13: 2018-05-14 | B13: 13:52:29 | C13: SP | D13: 1 | E13: Partly cloudy | F13: 10 | G13: 78 | H13: CAP-A-Soy | I13: 409 | J13: PC | K13: 3 | O13: 1 | Q13: 1 | R13: 0 | S13: 2 | T13: 0.6666666667
A14: 2018-05-18 | B14: 11:36:10 | C14: SP | D14: 1 | E14: Clear | F14: 11 | G14: 77 | H14: CAP-A-Soy | I14: 102 | J14: PC | K14: 2 | L14: 0 | M14: 0 | N14: 0 | O14: 1 | P14: 0 | Q14: 0 | R14: 0 | S14: 1 | T14: 0.5 | V14: 1
A15: 2018-05-18 | B15: 11:39:11 | C15: SP | D15: 1 | E15: Clear | F15: 11 | G15: 77 | H15: CAP-A-Soy | I15: 106 | J15: PC | K15: 3 | L15: 0 | M15: 0 | N15: 1 | O15: 2 | P15: 0 | Q15: 0 | R15: 0 | S15: 3 | T15: 1 | V15: 1
A16: 2018-05-18 | B16: 11:43:04 | C16: SP | D16: 1 | E16: Clear | F16: 11 | G16: 77 | H16: CAP-A-Soy | I16: 108 | J16: PC | K16: 2.5 | L16: 0 | M16: 0 | N16: 0 | O16: 1 | P16: 0 | Q16: 2 | R16: 0 | S16: 3 | T16: 1.2 | V16: 1
A17: 2018-05-18 | B17: 11:47:01 | C17: SP | D17: 1 | E17: Clear | F17: 11 | G17: 78 | H17: CAP-A-Soy | I17: 203 | J17: PC | K17: 3 | L17: 0 | M17: 0 | N17: 0 | O17: 1 | P17: 0 | Q17: 0 | R17: 0 | S17: 1 | T17: 0.3333333333 | V17: 1
A18: 2018-05-18 | B18: 11:49:09 | C18: SP | D18: 1 | E18: Clear | F18: 11 | G18: 78 | H18: CAP-A-Soy | I18: 205 | J18: PC | K18: 3 | L18: 0 | M18: 0 | N18: 2 | O18: 1 | P18: 0 | Q18: 0 | R18: 0 | S18: 3 | T18: 1 | V18: 1
A19: 2018-05-18 | B19: 11:54:14 | C19: SP | D19: 1 | E19: Clear | F19: 11 | G19: 78 | H19: CAP-A-Soy | I19: 209 | J19: PC | K19: 2.5 | L19: 0 | M19: 0 | N19: 0 | O19: 0 | P19: 0 | Q19: 1 | R19: 0 | S19: 1 | T19: 0.4 | V19: 1
A20: 2018-05-18 | B20: 11:57:09 | C20: SP | D20: 1 | E20: Clear | F20: 11 | G20: 78 | H20: CAP-A-Soy | I20: 301 | J20: PC | K20: 1.5 | L20: 0 | M20: 0 | N20: 2 | O20: 1 | P20: 0 | Q20: 1 | R20: 0 | S20: 4 | T20: 2.666666667 | V20: 1
A21: 2018-05-18 | B21: 12:01:04 | C21: SP | D21: 1 | E21: Clear | F21: 11 | G21: 78 | H21: CAP-A-Soy | I21: 306 | J21: PC | K21: 1 | L21: 0 | M21: 0 | N21: 3 | O21: 0 | P21: 1 | Q21: 0 | R21: 0 | S21: 4 | T21: 4 | V21: 1
A22: 2018-05-18 | B22: 12:03:13 | C22: SP | D22: 1 | E22: Clear | F22: 11 | G22: 78 | H22: CAP-A-Soy | I22: 310 | J22: PC | K22: 3 | L22: 0 | M22: 0 | N22: 0 | O22: 0 | P22: 1 | Q22: 1 | R22: 0 | S22: 2 | T22: 0.6666666667 | V22: 1
A23: 2018-05-18 | B23: 12:08:32 | C23: SP | D23: 1 | E23: Clear | F23: 10 | G23: 78 | H23: CAP-A-Soy | I23: 403 | J23: PC | K23: 0.5 | L23: 0 | M23: 0 | N23: 0 | O23: 0 | P23: 0 | Q23: 0 | R23: 0 | S23: 0 | T23: 0 | V23: 1
A24: 2018-05-18 | B24: 12:10:33 | C24: SP | D24: 1 | E24: Clear | F24: 10 | G24: 78 | H24: CAP-A-Soy | I24: 406 | J24: PC | K24: 2.5 | L24: 0 | M24: 0 | N24: 1 | O24: 0 | P24: 0 | Q24: 0 | R24: 0 | S24: 1 | T24: 0.4 | V24: 1
A25: 2018-05-18 | B25: 12:13:04 | C25: SP | D25: 1 | E25: Clear | F25: 10 | G25: 78 | H25: CAP-A-Soy | I25: 409 | J25: PC | K25: 2 | L25: 0 | M25: 0 | N25: 2 | O25: 0 | P25: 0 | Q25: 0 | R25: 0 | S25: 2 | T25: 1 | V25: 1
A26: 2018-05-18 | B26: 12:18:38 | C26: SP | D26: 1 | E26: Clear | F26: 10 | G26: 78 | H26: CAP-A-Corn | I26: 102 | J26: PC | K26: 0.05 | L26: 0 | M26: 0 | N26: 0 | O26: 0 | P26: 0 | Q26: 0 | R26: 0 | S26: 0 | T26: 0 | U26: NS | V26: 1
A27: 2018-05-18 | B27: 12:20:57 | C27: SP | D27: 1 | E27: Clear | F27: 10 | G27: 78 | H27: CAP-A-Corn | I27: 104 | J27: PC | K27: 0.5 | L27: 0 | M27: 0 | N27: 1 | O27: 0 | P27: 0 | Q27: 0 | R27: 0 | S27: 1 | T27: 2 | V27: 1
A28: 2018-05-18 | B28: 12:22:04 | C28: SP | D28: 1 | E28: Clear | F28: 10 | G28: 78 | H28: CAP-A-Corn | I28: 108 | J28: PC | K28: 0.5 | L28: 0 | M28: 0 | N28: 0 | O28: 0 | P28: 0 | Q28: 0 | R28: 0 | S28: 0 | T28: 0 | U28: NS | V28: 1
A29: 2018-05-18 | B29: 12:24:39 | C29: SP | D29: 1 | E29: Clear | F29: 10 | G29: 78 | H29: CAP-A-Corn | I29: 203 | J29: PC | K29: 0.5 | L29: 0 | M29: 0 | N29: 2 | O29: 1 | P29: 0 | Q29: 1 | R29: 1 | S29: 5 | T29: 10 | V29: 1
A30: 2018-05-18 | B30: 12:26:14 | C30: SP | D30: 1 | E30: Clear | F30: 10 | G30: 78 | H30: CAP-A-Corn | I30: 205 | J30: PC | K30: 0.1 | L30: 0 | M30: 0 | N30: 0 | O30: 0 | P30: 0 | Q30: 0 | R30: 0 | S30: 0 | T30: 0 | V30: 1
A31: 2018-05-18 | B31: 12:27:15 | C31: SP | D31: 1 | E31: Clear | F31: 10 | G31: 78 | H31: CAP-A-Corn | I31: 208 | J31: PC | K31: 0.01 | L31: 0 | M31: 0 | N31: 0 | O31: 0 | P31: 0 | Q31: 0 | R31: 0 | S31: 0 | T31: 0 | U31: NS | V31: 1
A32: 2018-05-18 | B32: 12:31:10 | C32: SP | D32: 1 | E32: Clear | F32: 10 | G32: 78 | H32: CAP-A-Corn | I32: 302 | J32: PC | K32: 1.5 | L32: 0 | M32: 0 | N32: 1 | O32: 0 | P32: 0 | Q32: 0 | R32: 1 | S32: 2 | T32: 1.333333333 | V32: 1
A33: 2018-05-18 | B33: 12:33:12 | C33: SP | D33: 1 | E33: Clear | F33: 10 | G33: 78 | H33: CAP-A-Corn | I33: 306 | J33: PC | K33: 0.5 | L33: 0 | M33: 0 | N33: 0 | O33: 0 | P33: 0 | Q33: 0 | R33: 0 | S33: 0 | T33: 0 | V33: 1
A34: 2018-05-18 | B34: 12:35:17 | C34: SP | D34: 1 | E34: Clear | F34: 10 | G34: 78 | H34: CAP-A-Corn | I34: 309 | J34: PC | K34: 0.5 | L34: 0 | M34: 0 | N34: 0 | O34: 1 | P34: 0 | Q34: 0 | R34: 0 | S34: 1 | T34: 2 | V34: 1
A35: 2018-05-18 | B35: 12:36:57 | C35: SP | D35: 1 | E35: Clear | F35: 10 | G35: 78 | H35: CAP-A-Corn | I35: 403 | J35: PC | K35: 0.01 | L35: 0 | M35: 0 | N35: 0 | O35: 0 | P35: 0 | Q35: 0 | R35: 0 | S35: 0 | T35: 0 | U35: NS | V35: 1
A36: 2018-05-18 | B36: 12:39:32 | C36: SP | D36: 1 | E36: Clear | F36: 10 | G36: 78 | H36: CAP-A-Corn | I36: 406 | J36: PC | K36: 0.1 | L36: 0 | M36: 0 | N36: 1 | O36: 0 | P36: 0 | Q36: 0 | R36: 0 | S36: 1 | T36: 10 | V36: 1
A37: 2018-05-18 | B37: 12:41:54 | C37: SP | D37: 1 | E37: Clear | F37: 10 | G37: 78 | H37: CAP-A-Corn | I37: 410 | J37: PC | K37: 1.5 | L37: 0 | M37: 0 | N37: 1 | O37: 0 | P37: 0 | Q37: 0 | R37: 0 | S37: 1 | T37: 0.6666666667 | V37: 1
A38: 2018-05-23 | B38: 12:30:07 | C38: SP | D38: 1 | E38: Partly Cloudy | F38: 11 | G38: 79 | H38: CAP-A-Soy | I38: 102 | J38: PC | K38: 0.5 | L38: 0 | M38: 0 | N38: 0 | O38: 1 | P38: 0 | Q38: 0 | R38: 0 | S38: 1 | T38: 2 | V38: 1
A39: 2018-05-23 | B39: 12:32:14 | C39: SP | D39: 1 | E39: Partly Cloudy | F39: 12 | G39: 79 | H39: CAP-A-Soy | I39: 106 | J39: PC | K39: 1 | L39: 0 | M39: 0 | N39: 2 | O39: 4 | P39: 0 | Q39: 0 | R39: 0 | S39: 6 | T39: 6 | V39: 1
A40: 2018-05-23 | B40: 12:35:58 | C40: SP | D40: 1 | E40: Partly Cloudy | F40: 12 | G40: 79 | H40: CAP-A-Soy | I40: 108 | J40: PC | K40: 1 | L40: 0 | M40: 0 | N40: 0 | O40: 2 | P40: 0 | Q40: 0 | R40: 0 | S40: 2 | T40: 2 | V40: 1
A41: 2018-05-23 | B41: 12:38:24 | C41: SP | D41: 1 | E41: Partly Cloudy | F41: 12 | G41: 79 | H41: CAP-A-Soy | I41: 203 | J41: PC | K41: 0.5 | L41: 0 | M41: 0 | N41: 1 | O41: 1 | P41: 0 | Q41: 0 | R41: 0 | S41: 2 | T41: 4 | V41: 1
A42: 2018-05-23 | B42: 12:40:17 | C42: SP | D42: 1 | E42: Partly Cloudy | F42: 12 | G42: 79 | H42: CAP-A-Soy | I42: 205 | J42: PC | K42: 1 | L42: 0 | M42: 0 | N42: 0 | O42: 1 | P42: 0 | Q42: 0 | R42: 1 | S42: 2 | T42: 2 | V42: 1
A43: 2018-05-23 | B43: 12:44:01 | C43: SP | D43: 1 | E43: Partly Cloudy | F43: 12 | G43: 79 | H43: CAP-A-Soy | I43: 209 | J43: PC | K43: 0.5 | L43: 0 | M43: 0 | N43: 0 | O43: 2 | P43: 0 | Q43: 0 | R43: 1 | S43: 3 | T43: 6 | V43: 1
A44: 2018-05-23 | B44: 12:46:11 | C44: SP | D44: 1 | E44: Partly Cloudy | F44: 12 | G44: 79 | H44: CAP-A-Soy | I44: 301 | J44: PC | K44: 0.5 | L44: 0 | M44: 0 | N44: 2 | O44: 1 | P44: 0 | Q44: 0 | R44: 1 | S44: 4 | T44: 8 | V44: 1
A45: 2018-05-23 | B45: 12:49:32 | C45: SP | D45: 1 | E45: Partly Cloudy | F45: 12 | G45: 79 | H45: CAP-A-Soy | I45: 306 | J45: PC | K45: 0.5 | L45: 0 | M45: 0 | N45: 1 | O45: 0 | P45: 0 | Q45: 0 | R45: 1 | S45: 2 | T45: 4 | V45: 1
A46: 2018-05-23 | B46: 12:52:58 | C46: SP | D46: 1 | E46: Partly Cloudy | F46: 12 | G46: 79 | H46: CAP-A-Soy | I46: 310 | J46: PC | K46: 0.5 | L46: 0 | M46: 0 | N46: 0 | O46: 0 | P46: 0 | Q46: 2 | R46: 1 | S46: 3 | T46: 6 | V46: 1
A47: 2018-05-23 | B47: 12:56:26 | C47: SP | D47: 1 | E47: Partly Cloudy | F47: 12 | G47: 79 | H47: CAP-A-Soy | I47: 403 | J47: PC | K47: 0.1 | L47: 0 | M47: 0 | N47: 0 | O47: 0 | P47: 0 | Q47: 0 | R47: 0 | S47: 0 | T47: 0 | V47: 1
A48: 2018-05-23 | B48: 12:57:57 | C48: SP | D48: 1 | E48: Partly Cloudy | F48: 12 | G48: 79 | H48: CAP-A-Soy | I48: 406 | J48: PC | K48: 0.2 | L48: 0 | M48: 0 | N48: 1 | O48: 1 | P48: 0 | Q48: 1 | R48: 0 | S48: 3 | T48: 15 | V48: 1
A49: 2018-05-23 | B49: 13:00:06 | C49: SP | D49: 1 | E49: Partly Cloudy | F49: 12 | G49: 79 | H49: CAP-A-Soy | I49: 409 | J49: PC | K49: 0.3 | L49: 0 | M49: 0 | N49: 3 | O49: 3 | P49: 0 | Q49: 0 | R49: 1 | S49: 7 | T49: 23.33333333 | V49: 1
A50: 2018-05-23 | B50: 13:03:25 | C50: SP | D50: 1 | E50: Partly Cloudy | F50: 12 | G50: 79 | H50: CAP-A-Corn | I50: 102 | J50: PC | K50: 0.1 | L50: 0 | M50: 0 | N50: 0 | O50: 0 | P50: 0 | Q50: 0 | R50: 0 | S50: 0 | T50: 0 | U50: NS | V50: 1
A51: 2018-05-23 | B51: 13:04:54 | C51: SP | D51: 1 | E51: Partly Cloudy | F51: 12 | G51: 79 | H51: CAP-A-Corn | I51: 104 | J51: PC | K51: 0.2 | L51: 0 | M51: 0 | N51: 2 | O51: 0 | P51: 0 | Q51: 0 | R51: 0 | S51: 2 | T51: 10 | V51: 1
A52: 2018-05-23 | B52: 13:06:39 | C52: SP | D52: 1 | E52: Partly Cloudy | F52: 12 | G52: 79 | H52: CAP-A-Corn | I52: 108 | J52: PC | K52: 0.5 | L52: 0 | M52: 0 | N52: 0 | O52: 0 | P52: 0 | Q52: 0 | R52: 0 | S52: 0 | T52: 0 | V52: 1
A53: 2018-05-23 | B53: 13:10:32 | C53: SP | D53: 1 | E53: Partly Cloudy | F53: 12 | G53: 82 | H53: CAP-A-Corn | I53: 203 | J53: PC | K53: 0.2 | L53: 0 | M53: 0 | N53: 0 | O53: 2 | P53: 0 | Q53: 0 | R53: 0 | S53: 2 | T53: 10 | V53: 1
A54: 2018-05-23 | B54: 13:12:15 | C54: SP | D54: 1 | E54: Partly Cloudy | F54: 12 | G54: 82 | H54: CAP-A-Corn | I54: 205 | J54: PC | K54: 0.1 | L54: 0 | M54: 0 | N54: 0 | O54: 3 | P54: 0 | Q54: 0 | R54: 0 | S54: 3 | T54: 30 | V54: 1
A55: 2018-05-23 | B55: 13:14:07 | C55: SP | D55: 1 | E55: Partly Cloudy | F55: 12 | G55: 82 | H55: CAP-A-Corn | I55: 208 | J55: PC | K55: 0 | L55: 0 | M55: 0 | N55: 0 | O55: 0 | P55: 0 | Q55: 0 | R55: 0 | S55: 0 | T55: 0 | U55: NS | V55: 1
A56: 2018-05-23 | B56: 13:16:34 | C56: SP | D56: 1 | E56: Partly Cloudy | F56: 12 | G56: 82 | H56: CAP-A-Corn | I56: 302 | J56: PC | K56: 0.2 | L56: 0 | M56: 0 | N56: 0 | O56: 0 | P56: 0 | Q56: 0 | R56: 0 | S56: 0 | T56: 0 | V56: 1
A57: 2018-05-23 | B57: 13:19:29 | C57: SP | D57: 1 | E57: Partly Cloudy | F57: 12 | G57: 82 | H57: CAP-A-Corn | I57: 306 | J57: PC | K57: 0.2 | L57: 0 | M57: 0 | N57: 1 | O57: 3 | P57: 0 | Q57: 1 | R57: 0 | S57: 5 | T57: 25 | V57: 1
A58: 2018-05-23 | B58: 13:20:55 | C58: SP | D58: 1 | E58: Partly Cloudy | F58: 12 | G58: 82 | H58: CAP-A-Corn | I58: 309 | J58: PC | K58: 0.5 | L58: 0 | M58: 0 | N58: 0 | O58: 1 | P58: 0 | Q58: 0 | R58: 0 | S58: 1 | T58: 2 | V58: 1
A59: 2018-05-23 | B59: 13:23:08 | C59: SP | D59: 1 | E59: Partly Cloudy | F59: 12 | G59: 82 | H59: CAP-A-Corn | I59: 403 | J59: PC | K59: 0 | L59: 0 | M59: 0 | N59: 0 | O59: 0 | P59: 0 | Q59: 0 | R59: 0 | S59: 0 | T59: 0 | U59: NS | V59: 1
A60: 2018-05-23 | B60: 13:26:53 | C60: SP | D60: 1 | E60: Partly Cloudy | F60: 12 | G60: 82 | H60: CAP-A-Corn | I60: 406 | J60: PC | K60: 0.1 | L60: 0 | M60: 0 | N60: 2 | O60: 1 | P60: 0 | Q60: 0 | R60: 0 | S60: 3 | T60: 30 | V60: 1
A61: 2018-05-23 | B61: 13:28:35 | C61: SP | D61: 1 | E61: Partly Cloudy | F61: 12 | G61: 82 | H61: CAP-A-Corn | I61: 410 | J61: PC | K61: 0.3 | L61: 0 | M61: 0 | N61: 2 | O61: 0 | P61: 0 | Q61: 0 | R61: 0 | S61: 2 | T61: 6.666666667 | V61: 1
A62: 2018-05-24 | B62: 10:16:27 | C62: SP | D62: 1 | E62: Clear | F62: 11 | G62: 79 | H62: CAP-A-Corn | I62: 102 | J62: PC | K62: 0.01 | L62: 0 | M62: 0 | N62: 0 | O62: 0 | P62: 0 | Q62: 0 | R62: 0 | S62: 0 | T62: 0 | U62: ns | V62: 1
A63: 2018-05-24 | B63: 10:18:38 | C63: SP | D63: 1 | E63: Clear | F63: 11 | G63: 79 | H63: CAP-A-Corn | I63: 104 | J63: PC | K63: 0.05 | L63: 0 | M63: 0 | N63: 1 | O63: 4 | P63: 0 | Q63: 0 | R63: 1 | S63: 6 | T63: 120 | V63: 1
A64: 2018-05-24 | B64: 10:20:42 | C64: SP | D64: 1 | E64: Clear | F64: 11 | G64: 79 | H64: CAP-A-Corn | I64: 108 | J64: PC | K64: 0.1 | L64: 0 | M64: 0 | N64: 1 | O64: 1 | P64: 0 | Q64: 0 | R64: 0 | S64: 2 | T64: 20 | V64: 1
A65: 2018-05-24 | B65: 10:26:45 | C65: SP | D65: 1 | E65: Clear | F65: 11 | G65: 79 | H65: CAP-A-Corn | I65: 203 | J65: PC | K65: 0.1 | L65: 0 | M65: 0 | N65: 0 | O65: 0 | P65: 0 | Q65: 0 | R65: 0 | S65: 0 | T65: 0 | V65: 1
A66: 2018-05-24 | B66: 10:28:20 | C66: SP | D66: 1 | E66: Clear | F66: 11 | G66: 79 | H66: CAP-A-Corn | I66: 205 | J66: PC | K66: 0.3 | L66: 0 | M66: 0 | N66: 4 | O66: 1 | P66: 0 | Q66: 0 | R66: 0 | S66: 5 | T66: 16.66666667 | V66: 1
A67: 2018-05-24 | B67: 10:30:03 | C67: SP | D67: 1 | E67: Clear | F67: 11 | G67: 79 | H67: CAP-A-Corn | I67: 208 | J67: PC | K67: 0 | L67: 0 | M67: 0 | N67: 0 | O67: 0 | P67: 0 | Q67: 0 | R67: 0 | S67: =SUM(L67:R67) -> 0 | T67: 0 | U67: NS | V67: 1
A68: 2018-05-24 | B68: 10:34:39 | C68: SP | D68: 1 | E68: Clear | F68: 11 | G68: 79 | H68: CAP-A-Corn | I68: 302 | J68: PC | K68: 0 | L68: 0 | M68: 0 | N68: 0 | O68: 0 | P68: 0 | Q68: 0 | R68: 0 | S68: 0 | T68: 0 | U68: FLOWERING PERIOD OVER | V68: 1
A69: 2018-05-24 | B69: 15:18:28 | C69: SP | D69: 1 | E69: Clear | F69: 19 | G69: 89 | H69: CAP-A-Soy | I69: 102 | J69: PC | K69: 0 | L69: 0 | M69: 0 | N69: 0 | O69: 0 | P69: 0 | Q69: 0 | R69: 0 | S69: 0 | T69: 0 | U69: END OF FLOWERING | V69: 1
A70: 2018-05-24 | B70: 15:20:40 | C70: SP | D70: 1 | E70: Clear | F70: 19 | G70: 89 | H70: CAP-A-Soy | I70: 106 | J70: PC | K70: 0.2 | L70: 0 | M70: 0 | N70: 0 | O70: 2 | P70: 0 | Q70: 0 | R70: 0 | S70: 2 | T70: =S70/K70 -> 10 | V70: 1
A71: 2018-05-24 | B71: 15:24:22 | C71: SP | D71: 1 | E71: Clear | F71: 19 | G71: 89 | H71: CAP-A-Soy | I71: 108 | J71: PC | K71: 0.5 | L71: 0 | M71: 0 | N71: 0 | O71: 0 | P71: 0 | Q71: 0 | R71: 0 | S71: 0 | T71: 0 | V71: 1
A72: 2018-05-24 | B72: 15:28:25 | C72: SP | D72: 1 | E72: Clear | F72: 19 | G72: 89 | H72: CAP-A-Soy | I72: 203 | J72: PC | K72: 0.05 | L72: 0 | M72: 0 | N72: 1 | O72: 2 | P72: 0 | Q72: 0 | R72: 0 | S72: 3 | T72: 60 | V72: 1
A73: 2018-05-24 | B73: 15:29:55 | C73: SP | D73: 1 | E73: Clear | F73: 19 | G73: 89 | H73: CAP-A-Soy | I73: 205 | J73: PC | K73: 0.5 | L73: 0 | M73: 0 | N73: 1 | O73: 0 | P73: 0 | Q73: 0 | R73: 0 | S73: 1 | T73: 2 | V73: 1
A74: 2018-05-24 | B74: 15:33:11 | C74: SP | D74: 1 | E74: Clear | F74: 19 | G74: 89 | H74: CAP-A-Soy | I74: 209 | J74: PC | K74: 1 | L74: 0 | M74: 0 | N74: 0 | O74: 0 | P74: 0 | Q74: 1 | R74: 0 | S74: 1 | T74: 1 | V74: 1
A75: 2018-05-24 | B75: 15:35:42 | C75: SP | D75: 1 | E75: Clear | F75: 19 | G75: 89 | H75: CAP-A-Soy | I75: 301 | J75: PC | K75: 0.5 | L75: 0 | M75: 0 | N75: 0 | O75: 0 | P75: 0 | Q75: 0 | R75: 1 | S75: 1 | T75: 2 | V75: 1
A76: 2018-05-24 | B76: 15:39:27 | C76: SP | D76: 1 | E76: Clear | F76: 19 | G76: 89 | H76: CAP-A-Soy | I76: 306 | J76: PC | K76: 0.5 | L76: 0 | M76: 0 | N76: 0 | O76: 0 | P76: 0 | Q76: 0 | R76: 0 | S76: 0 | T76: 0 | V76: 1
A77: 2018-05-24 | B77: 15:42:33 | C77: SP | D77: 1 | E77: Clear | F77: 19 | G77: 89 | H77: CAP-A-Soy | I77: 310 | J77: PC | K77: 0.5 | L77: 0 | M77: 0 | N77: 1 | O77: 1 | P77: 0 | Q77: 0 | R77: 0 | S77: 2 | T77: 4 | V77: 1
A78: 2018-05-24 | B78: 15:45:54 | C78: SP | D78: 1 | E78: Clear | F78: 19 | G78: 89 | H78: CAP-A-Soy | I78: 403 | J78: PC | K78: 0.5 | L78: 0 | M78: 0 | N78: 0 | O78: 0 | P78: 0 | Q78: 0 | R78: 0 | S78: 0 | T78: 0 | V78: 1
A79: 2018-05-24 | B79: 15:47:17 | C79: SP | D79: 1 | E79: Clear | F79: 19 | G79: 89 | H79: CAP-A-Soy | I79: 406 | J79: PC | K79: 0.5 | L79: 0 | M79: 0 | N79: 0 | O79: 0 | P79: 0 | Q79: 0 | R79: 1 | S79: 1 | T79: 2 | V79: 1
A80: 2018-05-24 | B80: 15:49:34 | C80: SP | D80: 1 | E80: Clear | F80: 19 | G80: 89 | H80: CAP-A-Soy | I80: 409 | J80: PC | K80: 0.5 | L80: 0 | M80: 0 | N80: 0 | O80: 0 | P80: 0 | Q80: 0 | R80: 0 | S80: 0 | T80: 0 | V80: 1
A81: 2018-05-25 | B81: 10:35:46 | C81: SP | D81: 1 | E81: Clear | F81: 10 | G81: 77 | H81: CAP-A-Soy | I81: 102 | J81: PC | K81: 0.1 | L81: 0 | M81: 0 | N81: 0 | O81: 0 | P81: 0 | Q81: 0 | R81: 0 | S81: 0 | T81: 0 | V81: 1
A82: 2018-05-25 | B82: 10:37:49 | C82: SP | D82: 1 | E82: Clear | F82: 10 | G82: 77 | H82: CAP-A-Soy | I82: 106 | J82: PC | K82: 0.5 | L82: 0 | M82: 0 | N82: 4 | O82: 2 | P82: 1 | Q82: 0 | R82: 0 | S82: 7 | T82: 14 | V82: 1
A83: 2018-05-25 | B83: 10:42:47 | C83: SP | D83: 1 | E83: Clear | F83: 10 | G83: 77 | H83: CAP-A-Soy | I83: 108 | J83: PC | K83: 0.5 | L83: 0 | M83: 0 | N83: 2 | O83: 2 | P83: 0 | Q83: 0 | R83: 0 | S83: 4 | T83: 8 | V83: 1
A84: 2018-05-25 | B84: 10:46:34 | C84: SP | D84: 1 | E84: Clear | F84: 10 | G84: 77 | H84: CAP-A-Soy | I84: 203 | J84: PC | K84: 0.5 | L84: 0 | M84: 0 | N84: 0 | O84: 1 | P84: 0 | Q84: 0 | R84: 0 | S84: 1 | T84: 2 | V84: 1
A85: 2018-05-25 | B85: 10:48:24 | C85: SP | D85: 1 | E85: Clear | F85: 10 | G85: 77 | H85: CAP-A-Soy | I85: 205 | J85: PC | K85: 1 | L85: 0 | M85: 0 | N85: 1 | O85: 3 | P85: 0 | Q85: 0 | R85: 0 | S85: 4 | T85: 4 | V85: 1
A86: 2018-05-25 | B86: 10:51:47 | C86: SP | D86: 1 | E86: Clear | F86: 10 | G86: 77 | H86: CAP-A-Soy | I86: 209 | J86: PC | K86: 0.5 | L86: 0 | M86: 0 | N86: 1 | O86: 3 | P86: 0 | Q86: 0 | R86: 0 | S86: 4 | T86: 8 | V86: 1
A87: 2018-05-25 | B87: 10:53:54 | C87: SP | D87: 1 | E87: Clear | F87: 10 | G87: 77 | H87: CAP-A-Soy | I87: 301 | J87: PC | K87: 0.5 | L87: 0 | M87: 0 | N87: 0 | O87: 0 | P87: 0 | Q87: 0 | R87: 0 | S87: 0 | T87: 0 | V87: 1
A88: 2018-05-25 | B88: 10:57:45 | C88: SP | D88: 1 | E88: Clear | F88: 10 | G88: 77 | H88: CAP-A-Soy | I88: 306 | J88: PC | K88: 0.5 | L88: 0 | M88: 0 | N88: 0 | O88: 1 | P88: 0 | Q88: 0 | R88: 1 | S88: 2 | T88: 4 | V88: 1
A89: 2018-05-25 | B89: 11:00:01 | C89: SP | D89: 1 | E89: Clear | F89: 10 | G89: 77 | H89: CAP-A-Soy | I89: 310 | J89: PC | K89: 0.5 | L89: 0 | M89: 0 | N89: 0 | O89: 1 | P89: 0 | Q89: 0 | R89: 3 | S89: 4 | T89: 8 | V89: 1
A90: 2018-05-25 | B90: 11:04:18 | C90: SP | D90: 1 | E90: Clear | F90: 10 | G90: 77 | H90: CAP-A-Soy | I90: 403 | J90: PC | K90: 0.5 | L90: 0 | M90: 0 | N90: 1 | O90: 1 | P90: 0 | Q90: 0 | R90: 1 | S90: 3 | T90: 6 | V90: 1
A91: 2018-05-25 | B91: 11:05:43 | C91: SP | D91: 1 | E91: Clear | F91: 10 | G91: 77 | H91: CAP-A-Soy | I91: 406 | J91: PC | K91: 0.5 | L91: 0 | M91: 0 | N91: 0 | O91: 1 | P91: 0 | Q91: 0 | R91: 1 | S91: 2 | T91: 4 | V91: 1
A92: 2018-05-25 | B92: 11:07:54 | C92: SP | D92: 1 | E92: Clear | F92: 10 | G92: 77 | H92: CAP-A-Soy | I92: 409 | J92: PC | K92: 0.5 | L92: 0 | M92: 0 | N92: 3 | O92: 3 | P92: 0 | Q92: 0 | R92: 1 | S92: 7 | T92: 14 | V92: 1
A93: 2018-05-25 | B93: 11:31:08 | C93: SP | D93: 1 | E93: Clear | F93: 10 | G93: 81 | H93: CAP-A-Corn | I93: 102 | J93: PC | K93: 0.01 | L93: 0 | M93: 0 | N93: 0 | O93: 0 | P93: 0 | Q93: 0 | R93: 0 | S93: 0 | T93: 0 | U93: ns | V93: 1
A94: 2018-05-25 | B94: 11:32:47 | C94: SP | D94: 1 | E94: Clear | F94: 10 | G94: 81 | H94: CAP-A-Corn | I94: 104 | J94: PC | K94: 0.5 | L94: 0 | M94: 0 | N94: 0 | O94: 4 | P94: 0 | Q94: 0 | R94: 0 | S94: 4 | T94: 8 | V94: 1
A95: 2018-05-25 | B95: 11:34:30 | C95: SP | D95: 1 | E95: Clear | F95: 10 | G95: 81 | H95: CAP-A-Corn | I95: 108 | J95: PC | K95: 0.5 | L95: 0 | M95: 0 | N95: 0 | O95: 2 | P95: 0 | Q95: 1 | R95: 0 | S95: 3 | T95: 6 | V95: 1
A96: 2018-05-25 | B96: 11:40:36 | C96: SP | D96: 1 | E96: Clear | F96: 10 | G96: 81 | H96: CAP-A-Corn | I96: 203 | J96: PC | K96: 0.5 | L96: 0 | M96: 0 | N96: 0 | O96: 1 | P96: 0 | Q96: 0 | R96: 1 | S96: 2 | T96: 4 | V96: 1
A97: 2018-05-25 | B97: 11:42:00 | C97: SP | D97: 1 | E97: Clear | F97: 10 | G97: 81 | H97: CAP-A-Corn | I97: 205 | J97: PC | K97: 0.5 | L97: 0 | M97: 0 | N97: 0 | O97: 3 | P97: 0 | Q97: 0 | R97: 1 | S97: 4 | T97: 8 | V97: 1
A98: 2018-05-25 | B98: 11:45:20 | C98: SP | D98: 1 | E98: Clear | F98: 10 | G98: 81 | H98: CAP-A-Corn | I98: 208 | J98: PC | K98: 0 | L98: 0 | M98: 0 | N98: 0 | O98: 0 | P98: 0 | Q98: 0 | R98: 0 | S98: 0 | T98: 0 | U98: NS | V98: 1
A99: 2018-05-25 | B99: 11:47:56 | C99: SP | D99: 1 | E99: Clear | F99: 10 | G99: 81 | H99: CAP-A-Corn | I99: 302 | J99: PC | K99: 0.2 | L99: 0 | M99: 0 | N99: 0 | O99: 3 | P99: 0 | Q99: 0 | R99: 0 | S99: 3 | T99: 15 | V99: 1
A100: 2018-05-25 | B100: 11:50:50 | C100: SP | D100: 1 | E100: Clear | F100: 10 | G100: 81 | H100: CAP-A-Corn | I100: 306 | J100: PC | K100: 0.5 | L100: 0 | M100: 0 | N100: 0 | O100: 2 | P100: 0 | Q100: 0 | R100: 1 | S100: 3 | T100: 6 | V100: 1
A101: 2018-05-25 | B101: 11:52:52 | C101: SP | D101: 1 | E101: Clear | F101: 10 | G101: 81 | H101: CAP-A-Corn | I101: 309 | J101: PC | K101: 0.2 | L101: 0 | M101: 0 | N101: 0 | O101: 0 | P101: 0 | Q101: 0 | R101: 1 | S101: 1 | T101: 5 | V101: 1
A102: 2018-05-25 | B102: 11:55:21 | C102: SP | D102: 1 | E102: Clear | F102: 10 | G102: 81 | H102: CAP-A-Corn | I102: 403 | J102: PC | K102: 0.001 | L102: 0 | M102: 0 | N102: 0 | O102: 0 | P102: 0 | Q102: 0 | R102: 0 | S102: 0 | T102: 0 | U102: NS | V102: 1
A103: 2018-05-25 | B103: 11:58:41 | C103: SP | D103: 1 | E103: Clear | F103: 10 | G103: 81 | H103: CAP-A-Corn | I103: 406 | J103: PC | K103: 0.5 | L103: 0 | M103: 0 | N103: 2 | O103: 3 | P103: 0 | Q103: 1 | R103: 0 | S103: 6 | T103: 12 | V103: 1
A104: 2018-05-25 | B104: 12:00:45 | C104: SP | D104: 1 | E104: Clear | F104: 10 | G104: 81 | H104: CAP-A-Corn | I104: 410 | J104: PC | K104: 0.5 | L104: 0 | M104: 0 | N104: 0 | O104: 0 | P104: 0 | Q104: 1 | R104: 1 | S104: 2 | T104: 4 | V104: 1
A105: 2018-05-29 | B105: 10:14:04 | C105: SP | D105: 1 | E105: Clear | F105: 7 | G105: 85 | H105: CAP-A-Soy | I105: 102 | J105: PC | K105: 0 | L105: 0 | M105: 0 | N105: 0 | O105: 0 | P105: 0 | Q105: 0 | R105: 0 | S105: 0 | T105: 0 | U105: flowering over | V105: 1
A106: 2018-05-29 | B106: 10:16:28 | C106: SP | D106: 1 | E106: Clear | F106: 7 | G106: 85 | H106: CAP-A-Soy | I106: 106 | J106: PC | K106: 0.5 | L106: 0 | M106: 0 | N106: 0 | O106: 6 | P106: 0 | Q106: 0 | R106: 0 | S106: 6 | T106: 12 | V106: 1
A107: 2018-05-29 | B107: 10:19:21 | C107: SP | D107: 1 | E107: Clear | F107: 7 | G107: 85 | H107: CAP-A-Soy | I107: 108 | J107: PC | K107: 0.5 | L107: 0 | M107: 0 | N107: 1 | O107: 2 | P107: 1 | Q107: 0 | R107: 0 | S107: 4 | T107: 8 | V107: 1
A108: 2018-05-29 | B108: 10:21:37 | C108: SP | D108: 1 | E108: Clear | F108: 7 | G108: 85 | H108: CAP-A-Soy | I108: 203 | J108: PC | K108: 0.5 | L108: 1 | M108: 0 | N108: 2 | O108: 3 | P108: 0 | Q108: 0 | R108: 0 | S108: 6 | T108: 12 | V108: 1
A109: 2018-05-29 | B109: 10:23:13 | C109: SP | D109: 1 | E109: Clear | F109: 7 | G109: 85 | H109: CAP-A-Soy | I109: 205 | J109: PC | K109: 1 | L109: 0 | M109: 0 | N109: 3 | O109: 3 | P109: 0 | Q109: 0 | R109: 0 | S109: 6 | T109: 6 | V109: 1
A110: 2018-05-29 | B110: 10:26:29 | C110: SP | D110: 1 | E110: Clear | F110: 7 | G110: 85 | H110: CAP-A-Soy | I110: 209 | J110: PC | K110: 0.5 | L110: 0 | M110: 0 | N110: 0 | O110: 3 | P110: 0 | Q110: 0 | R110: 0 | S110: 3 | T110: 6 | V110: 1
A111: 2018-05-29 | B111: 10:28:36 | C111: SP | D111: 1 | E111: Clear | F111: 7 | G111: 85 | H111: CAP-A-Soy | I111: 301 | J111: PC | K111: 1 | L111: 0 | M111: 0 | N111: 2 | O111: 1 | P111: 0 | Q111: 0 | R111: 3 | S111: 6 | T111: 6 | V111: 1
A112: 2018-05-29 | B112: 10:31:41 | C112: SP | D112: 1 | E112: Clear | F112: 7 | G112: 85 | H112: CAP-A-Soy | I112: 306 | J112: PC | K112: 0.5 | L112: 0 | M112: 0 | N112: 0 | O112: 2 | P112: 0 | Q112: 0 | R112: 0 | S112: 2 | T112: 4 | V112: 1
A113: 2018-05-29 | B113: 10:33:29 | C113: SP | D113: 1 | E113: Clear | F113: 7 | G113: 85 | H113: CAP-A-Soy | I113: 310 | J113: PC | K113: 0.5 | L113: 0 | M113: 0 | N113: 1 | O113: 1 | P113: 0 | Q113: 2 | R113: 0 | S113: 4 | T113: 8 | V113: 1
A114: 2018-05-29 | B114: 10:36:39 | C114: SP | D114: 1 | E114: Clear | F114: 7 | G114: 85 | H114: CAP-A-Soy | I114: 403 | J114: PC | K114: 0.5 | L114: 0 | M114: 0 | N114: 2 | O114: 3 | P114: 0 | Q114: 2 | R114: 2 | S114: 9 | T114: 18 | V114: 1
A115: 2018-05-29 | B115: 10:39:00 | C115: SP | D115: 1 | E115: Clear | F115: 7 | G115: 85 | H115: CAP-A-Soy | I115: 406 | J115: PC | K115: 0.5 | L115: 0 | M115: 0 | N115: 3 | O115: 1 | P115: 0 | Q115: 0 | R115: 0 | S115: 4 | T115: 8 | V115: 1
A116: 2018-05-29 | B116: 10:41:31 | C116: SP | D116: 1 | E116: Clear | F116: 7 | G116: 85 | H116: CAP-A-Soy | I116: 409 | J116: PC | K116: 0.5 | L116: 0 | M116: 0 | N116: 2 | O116: 2 | P116: 0 | Q116: 1 | R116: 0 | S116: 5 | T116: 10 | V116: 1
A117: 2018-05-29 | B117: 10:46:20 | C117: SP | D117: 1 | E117: Clear | F117: 7 | G117: 85 | H117: CAP-A-Corn | I117: 102 | J117: PC | K117: 0.2 | L117: 0 | M117: 0 | N117: 0 | O117: 1 | P117: 0 | Q117: 1 | R117: 0 | S117: 2 | T117: 10 | V117: 1
A118: 2018-05-29 | B118: 10:47:40 | C118: SP | D118: 1 | E118: Clear | F118: 7 | G118: 85 | H118: CAP-A-Corn | I118: 104 | J118: PC | K118: 0.3 | L118: 0 | M118: 0 | N118: 0 | O118: 1 | P118: 0 | Q118: 0 | R118: 1 | S118: 2 | T118: 6.666666667 | V118: 1
A119: 2018-05-29 | B119: 10:49:40 | C119: SP | D119: 1 | E119: Clear | F119: 7 | G119: 85 | H119: CAP-A-Corn | I119: 108 | J119: PC | K119: 0.2 | L119: 0 | M119: 0 | N119: 0 | O119: 3 | P119: 0 | Q119: 0 | R119: 0 | S119: 3 | T119: 15 | V119: 1
A120: 2018-05-29 | B120: 10:54:18 | C120: SP | D120: 1 | E120: Clear | F120: 7 | G120: 85 | H120: CAP-A-Corn | I120: 203 | J120: PC | K120: 0.2 | L120: 0 | M120: 0 | N120: 1 | O120: 2 | P120: 0 | Q120: 0 | R120: 0 | S120: 3 | T120: 15 | V120: 1
A121: 2018-05-29 | B121: 10:56:02 | C121: SP | D121: 1 | E121: Clear | F121: 7 | G121: 85 | H121: CAP-A-Corn | I121: 205 | J121: PC | K121: 0.5 | L121: 0 | M121: 0 | N121: 2 | O121: 1 | P121: 0 | Q121: 0 | R121: 0 | S121: 3 | T121: 6 | V121: 1
A122: 2018-05-29 | B122: 10:58:34 | C122: SP | D122: 1 | E122: Clear | F122: 7 | G122: 85 | H122: CAP-A-Corn | I122: 208 | J122: PC | K122: 0 | L122: 0 | M122: 0 | N122: 0 | O122: 0 | P122: 0 | Q122: 0 | R122: 0 | S122: 0 | T122: 0 | U122: NS | V122: 1
A123: 2018-05-29 | B123: 11:00:03 | C123: SP | D123: 1 | E123: Clear | F123: 7 | G123: 85 | H123: CAP-A-Corn | I123: 302 | J123: PC | K123: 0 | L123: 0 | M123: 0 | N123: 0 | O123: 0 | P123: 0 | Q123: 0 | R123: 0 | S123: 0 | T123: 0 | U123: FLOWERING OVER | V123: 1
A124: 2018-05-29 | B124: 11:02:47 | C124: SP | D124: 1 | E124: Clear | F124: 7 | G124: 85 | H124: CAP-A-Corn | I124: 306 | J124: PC | K124: 0.5 | L124: 0 | M124: 0 | N124: 0 | O124: 2 | P124: 0 | Q124: 1 | R124: 1 | S124: 4 | T124: 8 | V124: 1
A125: 2018-05-29 | B125: 11:04:53 | C125: SP | D125: 1 | E125: Clear | F125: 7 | G125: 85 | H125: CAP-A-Corn | I125: 309 | J125: PC | K125: 0.2 | L125: 0 | M125: 0 | N125: 0 | O125: 1 | P125: 0 | Q125: 0 | R125: 1 | S125: 2 | T125: 10 | V125: 1
A126: 2018-05-29 | B126: 11:07:06 | C126: SP | D126: 1 | E126: Clear | F126: 7 | G126: 85 | H126: CAP-A-Corn | I126: 403 | J126: PC | K126: 0 | L126: 0 | M126: 0 | N126: 0 | O126: 0 | P126: 0 | Q126: 0 | R126: 0 | S126: 0 | T126: 0 | U126: NS | V126: 1
A127: 2018-05-29 | B127: 11:10:18 | C127: SP | D127: 1 | E127: Clear | F127: 7 | G127: 85 | H127: CAP-A-Corn | I127: 406 | J127: PC | K127: 0.5 | L127: 0 | M127: 0 | N127: 3 | O127: 4 | P127: 0 | Q127: 0 | R127: 0 | S127: 7 | T127: 14 | V127: 1
A128: 2018-05-29 | B128: 11:12:28 | C128: SP | D128: 1 | E128: Clear | F128: 7 | G128: 85 | H128: CAP-A-Corn | I128: 410 | J128: PC | K128: 0.5 | L128: 0 | M128: 0 | N128: 4 | O128: 4 | P128: 0 | Q128: 1 | R128: 1 | S128: 10 | T128: 20 | V128: 1
A129: 2018-05-30 | B129: 12:07:22 | C129: SP | D129: 1 | E129: Partly Cloudy | F129: 11 | G129: 76 | H129: CAP-A-Soy | I129: 102 | J129: PC | K129: 0 | L129: 0 | M129: 0 | N129: 0 | O129: 0 | P129: 0 | Q129: 0 | R129: 0 | S129: 0 | T129: 0 | U129: flowering over | V129: 1
A130: 2018-05-30 | B130: 12:10:24 | C130: SP | D130: 1 | E130: Partly Cloudy | F130: 11 | G130: 76 | H130: CAP-A-Soy | I130: 106 | J130: PC | K130: 0.5 | L130: 0 | M130: 0 | N130: 0 | O130: 4 | P130: 0 | Q130: 0 | R130: 0 | S130: 4 | T130: 8 | V130: 1
A131: 2018-05-30 | B131: 12:13:13 | C131: SP | D131: 1 | E131: Partly Cloudy | F131: 11 | G131: 76 | H131: CAP-A-Soy | I131: 108 | J131: PC | K131: 0.2 | L131: 0 | M131: 0 | N131: 0 | O131: 5 | P131: 0 | Q131: 1 | R131: 0 | S131: =SUM(L131:R131) -> 6 | T131: =S131/K131 -> 30 | V131: 1
A132: 2018-05-30 | B132: 12:17:07 | C132: SP | D132: 1 | E132: Partly Cloudy | F132: 11 | G132: 76 | H132: CAP-A-Soy | I132: 203 | J132: PC | K132: 0.5 | L132: 0 | M132: 0 | N132: 1 | O132: 6 | P132: 1 | Q132: 0 | R132: 0 | S132: 8 | T132: 16 | V132: 1
A133: 2018-05-30 | B133: 12:18:39 | C133: SP | D133: 1 | E133: Partly Cloudy | F133: 11 | G133: 76 | H133: CAP-A-Soy | I133: 205 | J133: PC | K133: 1 | L133: 0 | M133: 0 | N133: 1 | O133: 6 | P133: 0 | Q133: 1 | R133: 1 | S133: 9 | T133: 9 | V133: 1
A134: 2018-05-30 | B134: 12:22:46 | C134: SP | D134: 1 | E134: Partly Cloudy | F134: 11 | G134: 76 | H134: CAP-A-Soy | I134: 209 | J134: PC | K134: 0.2 | L134: 0 | M134: 0 | N134: 1 | O134: 4 | P134: 0 | Q134: 0 | R134: 0 | S134: 5 | T134: 25 | U134: FLOWERING OVER | V134: 1
A135: 2018-05-30 | B135: 12:26:02 | C135: SP | D135: 1 | E135: Partly Cloudy | F135: 11 | G135: 76 | H135: CAP-A-Soy | I135: 301 | J135: PC | K135: 1 | L135: 0 | M135: 0 | N135: 1 | O135: 3 | P135: 0 | Q135: 0 | R135: 0 | S135: 4 | T135: 4 | V135: 1
A136: 2018-05-30 | B136: 12:29:35 | C136: SP | D136: 1 | E136: Partly Cloudy | F136: 11 | G136: 76 | H136: CAP-A-Soy | I136: 306 | J136: PC | K136: 0.5 | L136: 0 | M136: 0 | N136: 0 | O136: 2 | P136: 0 | Q136: 1 | R136: 1 | S136: 4 | T136: 8 | V136: 1
A137: 2018-05-30 | B137: 12:31:21 | C137: SP | D137: 1 | E137: Partly Cloudy | F137: 11 | G137: 76 | H137: CAP-A-Soy | I137: 310 | J137: PC | K137: 0.3 | L137: 0 | M137: 0 | N137: 4 | O137: 5 | P137: 0 | Q137: 0 | R137: 0 | S137: 9 | T137: 30 | V137: 1
A138: 2018-05-30 | B138: 12:34:40 | C138: SP | D138: 1 | E138: Partly Cloudy | F138: 11 | G138: 76 | H138: CAP-A-Soy | I138: 403 | J138: PC | K138: 0.5 | L138: 0 | M138: 0 | N138: 1 | O138: 1 | P138: 0 | Q138: 0 | R138: 0 | S138: 2 | T138: 4 | V138: 1
A139: 2018-05-30 | B139: 12:36:07 | C139: SP | D139: 1 | E139: Partly Cloudy | F139: 11 | G139: 76 | H139: CAP-A-Soy | I139: 406 | J139: PC | K139: 0.5 | L139: 0 | M139: 0 | N139: 2 | O139: 0 | P139: 0 | Q139: 0 | R139: 1 | S139: 3 | T139: 6 | V139: 1
A140: 2018-05-30 | B140: 12:38:15 | C140: SP | D140: 1 | E140: Partly Cloudy | F140: 11 | G140: 76 | H140: CAP-A-Soy | I140: 409 | J140: PC | K140: 0.3 | L140: 0 | M140: 0 | N140: 1 | O140: 4 | P140: 0 | Q140: 0 | R140: 0 | S140: 5 | T140: 16.66666667 | V140: 1
A141: 2018-05-30 | B141: 13:01:28 | C141: SP | D141: 1 | E141: Partly Cloudy | F141: 13 | G141: 78 | H141: CAP-A-Corn | I141: 102 | J141: PC | K141: 0.01 | L141: 0 | M141: 0 | N141: 0 | O141: 0 | P141: 0 | Q141: 0 | R141: 0 | S141: 0 | T141: 0 | U141: NS | V141: 1
A142: 2018-05-30 | B142: 13:03:09 | C142: SP | D142: 1 | E142: Partly Cloudy | F142: 13 | G142: 78 | H142: CAP-A-Corn | I142: 104 | J142: PC | K142: 0.2 | L142: 0 | M142: 0 | N142: 0 | O142: 3 | P142: 0 | Q142: 0 | R142: 0 | S142: 3 | T142: 15 | V142: 1
A143: 2018-05-30 | B143: 13:04:50 | C143: SP | D143: 1 | E143: Partly Cloudy | F143: 13 | G143: 78 | H143: CAP-A-Corn | I143: 108 | J143: PC | K143: 0.2 | L143: 0 | M143: 0 | N143: 1 | O143: 3 | P143: 0 | Q143: 0 | R143: 0 | S143: 4 | T143: 20 | V143: 1
A144: 2018-05-30 | B144: 13:10:26 | C144: SP | D144: 1 | E144: Partly Cloudy | F144: 13 | G144: 78 | H144: CAP-A-Corn | I144: 203 | J144: PC | K144: 0.2 | L144: 0 | M144: 0 | N144: 1 | O144: 2 | P144: 0 | Q144: 0 | R144: 0 | S144: 3 | T144: 15 | V144: 1
A145: 2018-05-30 | B145: 13:11:48 | C145: SP | D145: 1 | E145: Partly Cloudy | F145: 13 | G145: 78 | H145: CAP-A-Corn | I145: 205 | J145: PC | K145: 0.5 | L145: 0 | M145: 0 | N145: 0 | O145: 3 | P145: 0 | Q145: 0 | R145: 0 | S145: 3 | T145: 6 | V145: 1
A146: 2018-05-30 | B146: 13:14:22 | C146: SP | D146: 1 | E146: Partly Cloudy | F146: 15 | G146: 78 | H146: CAP-A-Corn | I146: 208 | J146: PC | K146: 0 | L146: 0 | M146: 0 | N146: 0 | O146: 0 | P146: 0 | Q146: 0 | R146: 0 | S146: 0 | T146: 0 | U146: NS | V146: 1
A147: 2018-05-30 | B147: 13:15:44 | C147: SP | D147: 1 | E147: Partly Cloudy | F147: 15 | G147: 78 | H147: CAP-A-Corn | I147: 302 | J147: PC | K147: 0 | L147: 0 | M147: 0 | N147: 0 | O147: 0 | P147: 0 | Q147: 0 | R147: 0 | S147: 0 | T147: 0 | U147: FLOWERING OVER | V147: 1
A148: 2018-05-30 | B148: 13:18:45 | C148: SP | D148: 1 | E148: Partly Cloudy | F148: 15 | G148: 78 | H148: CAP-A-Corn | I148: 306 | J148: PC | K148: 0.5 | L148: 0 | M148: 0 | N148: 0 | O148: 0 | P148: 0 | Q148: 0 | R148: 0 | S148: 0 | T148: 0 | V148: 1
A149: 2018-05-30 | B149: 13:20:06 | C149: SP | D149: 1 | E149: Partly Cloudy | F149: 15 | G149: 78 | H149: CAP-A-Corn | I149: 309 | J149: PC | K149: 0.2 | L149: 0 | M149: 0 | N149: 0 | O149: 1 | P149: 0 | Q149: 0 | R149: 0 | S149: 1 | T149: 5 | V149: 1
A150: 2018-05-30 | B150: 13:22:47 | C150: SP | D150: 1 | E150: Partly Cloudy | F150: 15 | G150: 78 | H150: CAP-A-Corn | I150: 403 | J150: PC | K150: 0 | L150: 0 | M150: 0 | N150: 0 | O150: 0 | P150: 0 | Q150: 0 | R150: 0 | S150: 0 | T150: 0 | U150: NS | V150: 1
A151: 2018-05-30 | B151: 13:25:49 | C151: SP | D151: 1 | E151: Partly Cloudy | F151: 15 | G151: 78 | H151: CAP-A-Corn | I151: 406 | J151: PC | K151: 0.5 | L151: 0 | M151: 0 | N151: 1 | O151: 0 | P151: 0 | Q151: 0 | R151: 0 | S151: 1 | T151: 2 | V151: 1
A152: 2018-05-30 | B152: 13:27:48 | C152: SP | D152: 1 | E152: Partly Cloudy | F152: 15 | G152: 78 | H152: CAP-A-Corn | I152: 410 | J152: PC | K152: 0.5 | L152: 0 | M152: 0 | N152: 0 | O152: 1 | P152: 0 | Q152: 0 | R152: 0 | S152: 1 | T152: 2 | V152: 1
A153: 2018-05-31 | B153: 12:04:49 | C153: SP | D153: 1 | E153: Partly Cloudy | F153: 9 | G153: 84 | H153: CAP-A-Soy | I153: 102 | J153: PC | K153: 0 | L153: 0 | M153: 0 | N153: 0 | O153: 0 | P153: 0 | Q153: 0 | R153: 0 | S153: 0 | T153: 0 | U153: FLOWERING OVER | V153: 1
A154: 2018-05-31 | B154: 12:06:40 | C154: SP | D154: 1 | E154: Partly Cloudy | F154: 9 | G154: 84 | H154: CAP-A-Soy | I154: 106 | J154: PC | K154: 0.2 | L154: 0 | M154: 0 | N154: 1 | O154: 2 | P154: 0 | Q154: 0 | R154: 2 | S154: 5 | T154: 25 | V154: 1
A155: 2018-05-31 | B155: 12:09:38 | C155: SP | D155: 1 | E155: Partly Cloudy | F155: 9 | G155: 84 | H155: CAP-A-Soy | I155: 108 | J155: PC | K155: 0.1 | L155: 0 | M155: 0 | N155: 0 | O155: 0 | P155: 0 | Q155: 1 | R155: 1 | S155: 2 | T155: 20 | V155: 1
A156: 2018-05-31 | B156: 12:11:53 | C156: SP | D156: 1 | E156: Partly Cloudy | F156: 9 | G156: 84 | H156: CAP-A-Soy | I156: 203 | J156: PC | K156: 1 | L156: 0 | M156: 0 | N156: 1 | O156: 2 | P156: 0 | Q156: 0 | R156: 0 | S156: 3 | T156: 3 | V156: 1
A157: 2018-05-31 | B157: 12:13:22 | C157: SP | D157: 1 | E157: Partly Cloudy | F157: 9 | G157: 84 | H157: CAP-A-Soy | I157: 205 | J157: PC | K157: 1 | L157: 0 | M157: 0 | N157: 1 | O157: 2 | P157: 0 | Q157: 0 | R157: 1 | S157: 4 | T157: 4 | V157: 1
A158: 2018-05-31 | B158: 12:16:39 | C158: SP | D158: 1 | E158: Partly Cloudy | F158: 9 | G158: 84 | H158: CAP-A-Soy | I158: 209 | J158: PC | K158: 0.2 | L158: 0 | M158: 0 | N158: 1 | O158: 3 | P158: 1 | Q158: 0 | R158: 0 | S158: 5 | T158: 25 | V158: 1
A159: 2018-05-31 | B159: 12:19:14 | C159: SP | D159: 1 | E159: Partly Cloudy | F159: 9 | G159: 84 | H159: CAP-A-Soy | I159: 301 | J159: PC | K159: 0.5 | L159: 0 | M159: 0 | N159: 3 | O159: 1 | P159: 0 | Q159: 1 | R159: 3 | S159: 8 | T159: 16 | V159: 1
A160: 2018-05-31 | B160: 12:21:47 | C160: SP | D160: 1 | E160: Partly Cloudy | F160: 9 | G160: 84 | H160: CAP-A-Soy | I160: 306 | J160: PC | K160: 0.02 | L160: 0 | M160: 0 | N160: 0 | O160: 0 | P160: 0 | Q160: 0 | R160: 0 | S160: 0 | T160: 0 | U160: NS | V160: 1
A161: 2018-05-31 | B161: 12:26:23 | C161: SP | D161: 1 | E161: Partly Cloudy | F161: 9 | G161: 84 | H161: CAP-A-Soy | I161: 310 | J161: PC | K161: 0.5 | L161: 0 | M161: 0 | N161: 1 | O161: 1 | P161: 0 | Q161: 1 | R161: 0 | S161: 3 | T161: 6 | V161: 1
A162: 2018-05-31 | B162: 12:31:09 | C162: SP | D162: 1 | E162: Partly Cloudy | F162: 10 | G162: 85 | H162: CAP-A-Soy | I162: 403 | J162: PC | K162: 0.5 | L162: 0 | M162: 0 | N162: 1 | O162: 4 | P162: 0 | Q162: 1 | R162: 1 | S162: 7 | T162: 14 | V162: 1
A163: 2018-05-31 | B163: 12:32:51 | C163: SP | D163: 1 | E163: Partly Cloudy | F163: 10 | G163: 85 | H163: CAP-A-Soy | I163: 406 | J163: PC | K163: 0.5 | L163: 0 | M163: 0 | N163: 2 | O163: 1 | P163: 0 | Q163: 0 | R163: 1 | S163: 4 | T163: 8 | V163: 1
A164: 2018-05-31 | B164: 12:34:48 | C164: SP | D164: 1 | E164: Partly Cloudy | F164: 10 | G164: 85 | H164: CAP-A-Soy | I164: 409 | J164: PC | K164: 0.5 | L164: 0 | M164: 0 | N164: 2 | O164: 6 | P164: 0 | Q164: 0 | R164: 1 | S164: 9 | T164: 18 | V164: 1
A165: 2018-05-31 | B165: 12:57:23 | C165: SP | D165: 1 | E165: Partly Cloudy | F165: 10 | G165: 86 | H165: CAP-A-Corn | I165: 102 | J165: PC | K165: 0.01 | L165: 0 | M165: 0 | N165: 0 | O165: 0 | P165: 0 | Q165: 0 | R165: 0 | S165: 0 | T165: 0 | U165: NS | V165: 1
A166: 2018-05-31 | B166: 12:58:47 | C166: SP | D166: 1 | E166: Partly Cloudy | F166: 10 | G166: 86 | H166: CAP-A-Corn | I166: 104 | J166: PC | K166: 0.2 | L166: 0 | M166: 0 | N166: 1 | O166: 2 | P166: 0 | Q166: 0 | R166: 1 | S166: 4 | T166: 20 | V166: 1
A167: 2018-05-31 | B167: 13:00:25 | C167: SP | D167: 1 | E167: Partly Cloudy | F167: 10 | G167: 86 | H167: CAP-A-Corn | I167: 108 | J167: PC | K167: 0.2 | L167: 0 | M167: 0 | N167: 3 | O167: 5 | P167: 0 | Q167: 0 | R167: 0 | S167: 8 | T167: 40 | V167: 1
A168: 2018-05-31 | B168: 13:05:16 | C168: SP | D168: 1 | E168: Partly Cloudy | F168: 10 | G168: 86 | H168: CAP-A-Corn | I168: 203 | J168: PC | K168: 0.1 | L168: 0 | M168: 0 | N168: 2 | O168: 1 | P168: 0 | Q168: 0 | R168: 0 | S168: 3 | T168: 30 | V168: 1
A169: 2018-05-31 | B169: 13:06:54 | C169: SP | D169: 1 | E169: Partly Cloudy | F169: 10 | G169: 86 | H169: CAP-A-Corn | I169: 205 | J169: PC | K169: 0.5 | L169: 0 | M169: 0 | N169: 0 | O169: 1 | P169: 0 | Q169: 1 | R169: 0 | S169: 2 | T169: 4 | V169: 1
A170: 2018-05-31 | B170: 13:08:53 | C170: SP | D170: 1 | E170: Partly Cloudy | F170: 10 | G170: 86 | H170: CAP-A-Corn | I170: 208 | J170: PC | K170: 0.01 | L170: 0 | M170: 0 | N170: 0 | O170: 0 | P170: 0 | Q170: 0 | R170: 0 | S170: 0 | T170: 0 | U170: NS | V170: 1
A171: 2018-05-31 | B171: 13:10:21 | C171: SP | D171: 1 | E171: Partly Cloudy | F171: 10 | G171: 86 | H171: CAP-A-Corn | I171: 302 | J171: PC | K171: 0.01 | L171: 0 | M171: 0 | N171: 0 | O171: 0 | P171: 0 | Q171: 0 | R171: 0 | S171: 0 | T171: 0 | U171: FLOWERING OVER | V171: 1
A172: 2018-05-31 | B172: 13:13:25 | C172: SP | D172: 1 | E172: Partly Cloudy | F172: 10 | G172: 86 | H172: CAP-A-Corn | I172: 306 | J172: PC | K172: 0.5 | L172: 0 | M172: 0 | N172: 0 | O172: 1 | P172: 0 | Q172: 1 | R172: 0 | S172: 2 | T172: 4 | V172: 1
A173: 2018-05-31 | B173: 13:15:17 | C173: SP | D173: 1 | E173: Partly Cloudy | F173: 10 | G173: 86 | H173: CAP-A-Corn | I173: 309 | J173: PC | K173: 0.2 | L173: 0 | M173: 0 | N173: 0 | O173: 2 | P173: 0 | Q173: 1 | R173: 0 | S173: 3 | T173: 15 | V173: 1
A174: 2018-05-31 | B174: 13:19:03 | C174: SP | D174: 1 | E174: Partly Cloudy | F174: 10 | G174: 86 | H174: CAP-A-Corn | I174: 403 | J174: PC | K174: 0.01 | L174: 0 | M174: 0 | N174: 0 | O174: 0 | P174: 0 | Q174: 0 | R174: 0 | S174: 0 | T174: 0 | U174: NS | V174: 1
A175: 2018-05-31 | B175: 13:22:27 | C175: SP | D175: 1 | E175: Partly Cloudy | F175: 10 | G175: 86 | H175: CAP-A-Corn | I175: 406 | J175: PC | K175: 1 | L175: 0 | M175: 0 | N175: 0 | O175: 1 | P175: 0 | Q175: 2 | R175: 0 | S175: 3 | T175: 3 | V175: 1
A176: 2018-05-31 | B176: 13:24:25 | C176: SP | D176: 1 | E176: Partly Cloudy | F176: 10 | G176: 86 | H176: CAP-A-Corn | I176: 410 | J176: PC | K176: 0.5 | L176: 0 | M176: 0 | N176: 0 | O176: 0 | P176: 0 | Q176: 0 | R176: 0 | S176: 0 | T176: 0 | V176: 1
A177: 2018-06-05 | B177: 13:52:07 | C177: SP | D177: 1 | E177: Clear | F177: 7 | G177: 87 | H177: CAP-A-Soy | I177: 102 | J177: PC | K177: 0 | L177: 0 | M177: 0 | N177: 0 | O177: 0 | P177: 0 | Q177: 0 | R177: 0 | S177: 0 | T177: 0 | U177: flowering over | V177: 1
A178: 2018-06-05 | B178: 13:54:17 | C178: SP | D178: 1 | E178: Clear | F178: 7 | G178: 87 | H178: CAP-A-Soy | I178: 106 | J178: PC | K178: 0.1 | L178: 0 | M178: 0 | N178: 2 | O178: 1 | P178: 0 | Q178: 0 | R178: 0 | S178: 3 | T178: 30 | V178: 1
A179: 2018-06-05 | B179: 13:57:39 | C179: SP | D179: 1 | E179: Clear | F179: 7 | G179: 87 | H179: CAP-A-Soy | I179: 108 | J179: PC | K179: 0.1 | L179: 0 | M179: 0 | N179: 0 | O179: 1 | P179: 0 | Q179: 0 | R179: 2 | S179: 3 | T179: 30 | V179: 1
A180: 2018-06-05 | B180: 14:00:20 | C180: SP | D180: 1 | E180: Clear | F180: 7 | G180: 87 | H180: CAP-A-Soy | I180: 203 | J180: PC | K180: 0.5 | L180: 0 | M180: 0 | N180: 0 | O180: 1 | P180: 0 | Q180: 0 | R180: 2 | S180: 3 | T180: 6 | V180: 1
A181: 2018-06-05 | B181: 14:01:59 | C181: SP | D181: 1 | E181: Clear | F181: 7 | G181: 87 | H181: CAP-A-Soy | I181: 205 | J181: PC | K181: 0.5 | L181: 0 | M181: 0 | N181: 3 | O181: 1 | P181: 0 | Q181: 0 | R181: 1 | S181: 5 | T181: 10 | V181: 1
A182: 2018-06-05 | B182: 14:05:25 | C182: SP | D182: 1 | E182: Clear | F182: 7 | G182: 87 | H182: CAP-A-Soy | I182: 209 | J182: PC | K182: 1 | L182: 0 | M182: 0 | N182: 1 | O182: 8 | P182: 0 | Q182: 0 | R182: 0 | S182: 9 | T182: 9 | U182: NS | V182: 1
A183: 2018-06-05 | B183: 14:08:00 | C183: SP | D183: 1 | E183: Clear | F183: 7 | G183: 87 | H183: CAP-A-Soy | I183: 301 | J183: PC | K183: 0.5 | L183: 0 | M183: 0 | N183: 0 | O183: 4 | P183: 0 | Q183: 0 | R183: 0 | S183: 4 | T183: 8 | V183: 1
A184: 2018-06-05 | B184: 14:11:39 | C184: SP | D184: 1 | E184: Clear | F184: 7 | G184: 87 | H184: CAP-A-Soy | I184: 306 | J184: PC | K184: 1 | L184: 0 | M184: 0 | N184: 0 | O184: 7 | P184: 0 | Q184: 1 | R184: 0 | S184: 8 | T184: 8 | V184: 1
A185: 2018-06-05 | B185: 14:14:56 | C185: SP | D185: 1 | E185: Clear | F185: 7 | G185: 87 | H185: CAP-A-Soy | I185: 310 | J185: PC | K185: 1 | L185: 0 | M185: 0 | N185: 1 | O185: 3 | P185: 0 | Q185: 0 | R185: 0 | S185: 4 | T185: 4 | V185: 1
A186: 2018-06-05 | B186: 14:18:47 | C186: SP | D186: 1 | E186: Clear | F186: 7 | G186: 87 | H186: CAP-A-Soy | I186: 403 | J186: PC | K186: 0.5 | L186: 0 | M186: 0 | N186: 0 | O186: 2 | P186: 0 | Q186: 0 | R186: 0 | S186: 2 | T186: 4 | V186: 1
A187: 2018-06-05 | B187: 14:20:13 | C187: SP | D187: 1 | E187: Clear | F187: 7 | G187: 87 | H187: CAP-A-Soy | I187: 406 | J187: PC | K187: 0.5 | L187: 0 | M187: 0 | N187: 0 | O187: 1 | P187: 0 | Q187: 0 | R187: 0 | S187: 1 | T187: 2 | V187: 1
A188: 2018-06-05 | B188: 14:22:07 | C188: SP | D188: 1 | E188: Clear | F188: 7 | G188: 87 | H188: CAP-A-Soy | I188: 409 | J188: PC | K188: 0.5 | L188: 0 | M188: 0 | N188: 0 | O188: 2 | P188: 0 | Q188: 1 | R188: 1 | S188: 4 | T188: 8 | V188: 1
A189: 2018-06-05 | B189: 14:35:44 | C189: SP | D189: 1 | E189: Clear | F189: 10 | G189: 89 | H189: CAP-A-Corn | I189: 102 | J189: PC | K189: 0.2 | L189: 0 | M189: 0 | N189: 2 | O189: 1 | P189: 0 | Q189: 0 | R189: 1 | S189: 4 | T189: 20 | V189: 1
A190: 2018-06-05 | B190: 14:37:13 | C190: SP | D190: 1 | E190: Clear | F190: 10 | G190: 89 | H190: CAP-A-Corn | I190: 104 | J190: PC | K190: 0.5 | L190: 0 | M190: 0 | N190: 2 | O190: 2 | P190: 0 | Q190: 0 | R190: 2 | S190: 6 | T190: 12 | V190: 1
A191: 2018-06-05 | B191: 14:40:46 | C191: SP | D191: 1 | E191: Clear | F191: 10 | G191: 89 | H191: CAP-A-Corn | I191: 108 | J191: PC | K191: 0.5 | L191: 0 | M191: 0 | N191: 2 | O191: 2 | P191: 0 | Q191: 0 | R191: 1 | S191: 5 | T191: 10 | V191: 1
A192: 2018-06-05 | B192: 14:45:30 | C192: SP | D192: 1 | E192: Clear | F192: 10 | G192: 89 | H192: CAP-A-Corn | I192: 203 | J192: PC | K192: 0.5 | L192: 0 | M192: 0 | N192: 0 | O192: 0 | P192: 0 | Q192: 1 | R192: 1 | S192: 2 | T192: 4 | V192: 1
A193: 2018-06-05 | B193: 14:46:55 | C193: SP | D193: 1 | E193: Clear | F193: 10 | G193: 89 | H193: CAP-A-Corn | I193: 205 | J193: PC | K193: 0.5 | L193: 0 | M193: 0 | N193: 0 | O193: 1 | P193: 0 | Q193: 1 | R193: 1 | S193: 3 | T193: 6 | V193: 1
A194: 2018-06-05 | B194: 14:50:10 | C194: SP | D194: 1 | E194: Clear | F194: 10 | G194: 89 | H194: CAP-A-Corn | I194: 208 | J194: PC | K194: 0 | L194: 0 | M194: 0 | N194: 0 | O194: 0 | P194: 0 | Q194: 0 | R194: 0 | S194: 0 | T194: 0 | U194: NS | V194: 1
A195: 2018-06-05 | B195: 14:52:37 | C195: SP | D195: 1 | E195: Clear | F195: 10 | G195: 89 | H195: CAP-A-Corn | I195: 302 | J195: PC | K195: 0.2 | L195: 0 | M195: 0 | N195: 1 | O195: 0 | P195: 0 | Q195: 0 | R195: 1 | S195: =SUM(L195:R195) -> 2 | T195: =S195/K195 -> 10 | V195: 1
A196: 2018-06-05 | B196: 14:55:41 | C196: SP | D196: 1 | E196: Clear | F196: 10 | G196: 89 | H196: CAP-A-Corn | I196: 306 | J196: PC | K196: 1 | L196: 0 | M196: 0 | N196: 2 | O196: 2 | P196: 0 | Q196: 0 | R196: 0 | S196: 4 | T196: 4 | V196: 1
A197: 2018-06-05 | B197: 14:57:09 | C197: SP | D197: 1 | E197: Clear | F197: 10 | G197: 89 | H197: CAP-A-Corn | I197: 309 | J197: PC | K197: 0.2 | L197: 0 | M197: 0 | N197: 0 | O197: 0 | P197: 0 | Q197: 0 | R197: 0 | S197: 0 | T197: 0 | V197: 1
A198: 2018-06-05 | B198: 14:59:16 | C198: SP | D198: 1 | E198: Clear | F198: 10 | G198: 89 | H198: CAP-A-Corn | I198: 403 | J198: PC | K198: 0 | L198: 0 | M198: 0 | N198: 0 | O198: 0 | P198: 0 | Q198: 0 | R198: 0 | S198: 0 | T198: 0 | U198: NS | V198: 1
A199: 2018-06-05 | B199: 15:01:15 | C199: SP | D199: 1 | E199: Clear | F199: 10 | G199: 89 | H199: CAP-A-Corn | I199: 406 | J199: PC | K199: 0.5 | L199: 0 | M199: 0 | N199: 1 | O199: 1 | P199: 0 | Q199: 0 | R199: 0 | S199: 2 | T199: 4 | V199: 1
A200: 2018-06-05 | B200: 15:02:41 | C200: SP | D200: 1 | E200: Clear | F200: 10 | G200: 89 | H200: CAP-A-Corn | I200: 406 | J200: PC | K200: 0.5 | L200: 0 | M200: 0 | N200: 1 | O200: 1 | P200: 0 | Q200: 1 | R200: 0 | S200: 3 | T200: 6 | V200: 1
... 236 more rows

Sheet TimeCharts
C1: Morris | K1: Ames | S1: Rosemount

Sheet PieCharts

Sheet Regressions
A3: Crop | B3: Site | C3: Flies | D3: SmBees | E3: Apidae | F3: Others | G3: Water | H3: Build | I3: Road | J3: Tree | K3: Farm | L3: W+R+T | M3: B+R+T | N3: W+B+R+T
A4: PC | B4: Ame17 | C4: 61 | D4: 21 | E4: 0 | F4: =100-(C4+D4+E4) -> 18 | G4: 0 | H4: 0.7 | I4: 1.7 | J4: 0.8 | K4: 96.2 | L4: =G4+I4+J4 -> 2.5 | M4: =H4+I4+J4 -> 3.2 | N4: =G4+H4+I4+J4 -> 3.2
A5: PC | B5: Ame18 | C5: 54 | D5: 26 | E5: 1 | F5: =100-(C5+D5+E5) -> 19 | G5: 0 | H5: 0.7 | I5: 1.7 | J5: 0.8 | K5: 96.2 | L5: =G5+I5+J5 -> 2.5 | M5: =H5+I5+J5 -> 3.2 | N5: =G5+H5+I5+J5 -> 3.2
A6: PC | B6: Brk13 | C6: 33 | D6: 38 | E6: 8 | F6: 21 | G6: 0.2 | H6: 2 | I6: 1.8 | J6: 3.5 | K6: 92.5 | L6: 5.5 | M6: 7.3 | N6: 7.5
A7: PC | B7: Dunde | C7: 18 | D7: 65 | E7: 0 | F7: 17 | G7: 0 | H7: 13.8 | I7: 1.9 | J7: 1.8 | K7: 82.5 | L7: 3.7 | M7: 17.5 | N7: 17.5
A8: PC | B8: Mor13 | C8: 92 | D8: 2 | E8: 0 | F8: 6 | G8: 24.2 | H8: 5 | I8: 0.8 | J8: 1.8 | K8: 70 | L8: 26.8 | M8: 7.6 | N8: 31.8
A9: PC | B9: Mor14 | C9: 28 | D9: 11 | E9: 0 | F9: 61 | G9: 24.2 | H9: 5 | I9: 0.8 | J9: 1.8 | K9: 70 | L9: 26.8 | M9: 7.6 | N9: 31.8
A10: PC | B10: Mor17 | C10: 32 | D10: 32 | E10: 0 | F10: 36 | G10: 24.2 | H10: 5 | I10: 0.8 | J10: 1.8 | K10: 70 | L10: 26.8 | M10: 7.6 | N10: 31.8
A11: PC | B11: Mor18 | C11: 45 | D11: 15 | E11: 0 | F11: 40 | G11: 24.2 | H11: 5 | I11: 0.8 | J11: 1.8 | K11: 70 | L11: 26.8 | M11: 7.6 | N11: 31.8
A12: PC | B12: Ros18 | C12: 65 | D12: 11 | E12: 3 | F12: 21 | G12: 0 | H12: 1.5 | I12: 0.3 | J12: 17.5 | K12: 80.7 | L12: 17.8 | M12: 19.3 | N12: 19.3
A13: PC | B13: Was17 | C13: 83 | D13: 0 | E13: 8 | F13: 9 | G13: 2.4 | H13: 3.9 | I13: 1.6 | J13: 0 | K13: 92.1 | L13: 4 | M13: 5.5 | N13: 7.9
A15: Crop | B15: Site | C15: Flies | D15: SmBees | E15: Apidae | F15: Others | G15: Water | H15: Build | I15: Road | J15: Tree | K15: Farm | L15: W+R+T | M15: B+R+T | N15: W+B+R+T
A16: WC | B16: Ame17 | C16: 36 | D16: 50 | E16: 1 | F16: =100-(C16+D16+E16) -> 13 | G16: 0 | H16: 0.7 | I16: 1.7 | J16: 0.8 | K16: 96.2 | L16: =G16+I16+J16 -> 2.5 | M16: =H16+I16+J16 -> 3.2 | N16: =G16+H16+I16+J16 -> 3.2
A17: WC | B17: Ame18 | C17: 40 | D17: 41 | E17: 4 | F17: =100-(C17+D17+E17) -> 15 | G17: 0 | H17: 0.7 | I17: 1.7 | J17: 0.8 | K17: 96.2 | L17: 2.5 | M17: 3.2 | N17: 3.2
A18: WC | B18: Brk13 | C18: 31 | D18: 33 | E18: 20 | F18: 16 | G18: 0.2 | H18: 2 | I18: 1.8 | J18: 3.5 | K18: 92.5 | L18: 5.5 | M18: 7.3 | N18: 7.5
A19: WC | B19: Brk14 | C19: 10 | D19: 60 | E19: 3 | F19: 27 | G19: 0.2 | H19: 2 | I19: 1.8 | J19: 3.5 | K19: 92.5 | L19: 5.5 | M19: 7.3 | N19: 7.5
A20: WC | B20: Dunde | C20: 11 | D20: 25 | E20: 45 | F20: 19 | G20: 0 | H20: 13.8 | I20: 1.9 | J20: 1.8 | K20: 82.5 | L20: 3.7 | M20: 17.5 | N20: 17.5
A21: WC | B21: Mor13 | C21: 67 | D21: 23 | E21: 1 | F21: 9 | G21: 24.2 | H21: 5 | I21: 0.8 | J21: 1.8 | K21: 70 | L21: 26.8 | M21: 7.6 | N21: 31.8
A22: WC | B22: Mor14 | C22: 23 | D22: 23 | E22: 1 | F22: 53 | G22: 24.2 | H22: 5 | I22: 0.8 | J22: 1.8 | K22: 70 | L22: 26.8 | M22: 7.6 | N22: 31.8
A23: WC | B23: Mor18 | C23: 29 | D23: 11 | E23: 7 | F23: 53 | G23: 24.2 | H23: 5 | I23: 0.8 | J23: 1.8 | K23: 70 | L23: 26.8 | M23: 7.6 | N23: 31.8
A24: WC | B24: Ros18 | C24: 37 | D24: 0 | E24: 4 | F24: 59 | G24: 0 | H24: 1.5 | I24: 0.3 | J24: 17.5 | K24: 80.7 | L24: 17.8 | M24: 19.3 | N24: 19.3
A25: WC | B25: Storr | C25: 48 | D25: 17 | E25: 34 | F25: 1 | G25: 0.4 | H25: 6.2 | I25: 1.9 | J25: 81 | K25: 10.6 | L25: 83.3 | M25: 89.1 | N25: 89.5
A28: SUMMARY OUTPUT
A30: Regression Statistics
A31: Multiple R | B31: 0.8080227028
A32: R Square | B32: 0.6529006883
A33: Adjusted R Square | B33: 0.2190265487
A34: Standard Error | B34: 18.39270689
A35: Observations | B35: 10
A37: ANOVA
B38: df | C38: SS | D38: MS | E38: F | F38: Significance F
A39: Regression | B39: 5 | C39: 2545.333333 | D39: 509.0666667 | E39: 1.504815864 | F39: 0.3566665085 | L39: P-values for five landscape variables in multiple regressions
A40: Residual | B40: 4 | C40: 1353.166667 | D40: 338.2916667
A41: Total | B41: 9 | C41: 3898.5 | L41: PC Flies | M41: PC Bees | N41: PC Apidae | O41: PC Other | P41: WC Flies | Q41: WC Bees | R41: WC Apidae | S41: WC Other
K42: Signif-F | L42: 0.59 | M42: 0.07723818748 | N42: 0.0001133043508 | O42: 0.79 | P42: 0.64 | Q42: 0.11 | R42: 0.02 | S42: 0.36
B43: Coefficients | C43: Standard Error | D43: t Stat | E43: P-value | F43: Lower 95% | G43: Upper 95% | H43: Lower 95.0% | I43: Upper 95.0% | K43: Adj R2 | L43: -0.1 | M43: 0.68 | N43: 0.99 | O43: -0.42 | P43: -0.18 | Q43: 0.62 | R43: 0.83 | S43: 0.22
A44: Intercept | B44: -1812.42871 | C44: 3318.581726 | D44: -0.5461455704 | E44: 0.6139987249 | F44: -11026.2887 | G44: 7401.43128 | H44: -11026.2887 | I44: 7401.43128 | K44: Intercept | L44: 0.5434110119 | M44: 0.168156768 | N44: 2.098121016e-05 | O44: 0.7413926793 | P44: 0.4222144525 | Q44: 0.896879044 | R44: 0.5427594178 | S44: 0.6139987249
A45: X Variable 1 | B45: 16.98990338 | C45: 30.67358654 | D45: 0.5538936033 | E45: 0.6091559484 | F45: -68.17362584 | G45: 102.1534326 | H45: -68.17362584 | I45: 102.1534326 | K45: Water | L45: 0.5600512004 | M45: 0.1775333736 | N45: 2.089049265e-05 | O45: 0.7614626357 | P45: 0.4361490186 | Q45: 0.8850638941 | R45: 0.569628823 | S45: 0.6091559484
A46: X Variable 2 | B46: 18.78968744 | C46: 32.2219538 | D46: 0.5831330885 | E46: 0.5910984639 | F46: -70.67279848 | G46: 108.2521734 | H46: -70.67279848 | I46: 108.2521734 | K46: Buildings | L46: 0.530395462 | M46: 0.1709853461 | N46: 2.236697207e-05 | O46: 0.7323951029 | P46: 0.4052473271 | Q46: 0.9740983995 | R46: 0.4081001459 | S46: 0.5910984639
A47: X Variable 3 | B47: -8.198071711 | C47: 40.78572696 | D47: -0.2010034471 | E47: 0.8505030104 | F47: -121.4374037 | G47: 105.0412603 | H47: -121.4374037 | I47: 105.0412603 | K47: Roads | L47: 0.3173606516 | M47: 0.1411829342 | N47: 0.0002651688321 | O47: 0.82116961 | P47: 0.4221107436 | Q47: 0.2717560812 | R47: 0.4160186059 | S47: 0.8505030104
A48: X Variable 4 | B48: 18.59279864 | C48: 33.09829532 | D48: 0.5617449015 | E48: 0.6042731799 | F48: -73.30280138 | G48: 110.4883987 | H48: -73.30280138 | I48: 110.4883987 | K48: Trees | L48: 0.6048106507 | M48: 0.2102885863 | N48: 1.989306915e-05 | O48: 0.7689009995 | P48: 0.431985218 | Q48: 0.9079715908 | R48: 0.5376265284 | S48: 0.6042731799
A49: X Variable 5 | B49: 18.83927663 | C49: 33.21725077 | D49: 0.5671533974 | E49: 0.6009240708 | F49: -73.38659667 | G49: 111.0651499 | H49: -73.38659667 | I49: 111.0651499 | K49: Farmland | L49: 0.5228749422 | M49: 0.1600245065 | N49: 2.118850145e-05 | O49: 0.7384825408 | P49: 0.427287428 | Q49: 0.8970141304 | R49: 0.5450616881 | S49: 0.6009240708

Sheet Main
C1: Timer: | D1: 1 | E1: (min)
B3: Experiment | C3: Sky Cover | D3: Wind (mph) | E3: Temp (F) | F3: Observers | G3: No
F5: je | G5: 1
A6: Plot Number: | D6: PC | E6: % Flower Cover: | K6: ¹
A9: 4
A17: 2
H18: d
B19: Notes:

Sheet Setup
A2: Sky | B2: Wind | C2: Temps | D2: Experitment | E2: Flower Cover | F2: Plot Number | G2: Crop | H2: Exp 2
A3: Clear | B3: 0 | C3: 50 | D3: CAP-M | E3: <1 | F3: 101 | G3: WC | H3: CAP-M
A4: Partly Cloudy | B4: 5 | C4: 55 | E4: 1 | F4: 103 | G4: PC | H4: CAP-M
A5: Mostly Cloudy | B5: 10 | C5: 60 | E5: 5 | F5: 104 | G5: WC | H5: CAP-M
A6: Overcast | B6: 15 | C6: 65 | E6: 10 | F6: 106 | G6: PC | H6: CAP-M
B7: 20 | C7: 70 | E7: 15 | F7: 107 | G7: WC | H7: CAP-M
B8: 25 | C8: 75 | E8: 20 | F8: 109 | G8: PC | H8: CAP-M
B9: 30 | C9: 80 | E9: 25 | F9: 112 | G9: WC | H9: CAP-M
B10: 35 | C10: 85 | E10: 30 | F10: 113 | G10: PC | H10: CAP-M
B11: 40 | C11: 90 | E11: 35 | F11: 115 | G11: PC | H11: CAP-M
E12: 40 | F12: 116 | G12: WC | H12: CAP-M
E13: 45 | F13: 119 | G13: PC | H13: CAP-M
E14: 50 | F14: 120 | G14: WC | H14: CAP-M
E15: 55 | F15: 122 | G15: WC | H15: CAP-M
E16: 60 | F16: 123 | G16: PC | H16: CAP-M
E17: 65 | F17: 125 | G17: WC | H17: CAP-M
F18: 126 | G18: PC | H18: CAP-M
F19: 128 | G19: WC | H19: CAP-M
F20: 130 | G20: PC | H20: CAP-M
F21: 132 | G21: PC | H21: CAP-M
F22: 133 | G22: WC | H22: CAP-M
F23: 135 | G23: WC | H23: CAP-M
F24: 136 | G24: PC | H24: CAP-M
F25: 138 | G25: PC | H25: CAP-M
F26: 139 | G26: WC | H26: CAP-M
F27: 201 | G27: WC | H27: CAP-M
F28: 203 | G28: PC | H28: CAP-M
F29: 204 | G29: WC | H29: CAP-M
F30: 206 | G30: PC | H30: CAP-M
F31: 207 | G31: WC | H31: CAP-M
F32: 209 | G32: PC | H32: CAP-M
F33: 212 | G33: WC | H33: CAP-M
F34: 213 | G34: PC | H34: CAP-M
F35: 215 | G35: PC | H35: CAP-M
F36: 216 | G36: WC | H36: CAP-M
F37: 219 | G37: PC | H37: CAP-M
F38: 220 | G38: WC | H38: CAP-M
F39: 222 | G39: WC | H39: CAP-M
F40: 223 | G40: PC | H40: CAP-M
F41: 225 | G41: WC | H41: CAP-M
F42: 226 | G42: PC | H42: CAP-M
F43: 228 | G43: WC | H43: CAP-M
F44: 230 | G44: PC | H44: CAP-M
F45: 232 | G45: PC | H45: CAP-M
F46: 233 | G46: WC | H46: CAP-M
F47: 235 | G47: WC | H47: CAP-M
F48: 236 | G48: PC | H48: CAP-M
F49: 238 | G49: PC | H49: CAP-M
F50: 239 | G50: WC | H50: CAP-M
